{"text_format":"1","workbook":"xlsx","n_sheets":16,"sheets":["INSTRUCTIONS - READ THIS FIRST","S0-S5","Country profile","country","S-IEC","S-Dog popn","T-Prev & Ctrl","T-Data coll & ax","T-Lab dx","O-Cross-cutting issues","P-Legislation","key acts","masterlist","SUMMARY (Score)","SUMMARY (S0-S5)","RULES"],"not_rendered":{"charts":0,"images":7,"macros":1,"external_links":1,"defined_names":48,"comments":0,"pivot_tables":1},"unopened":[],"bounds":{"document_bytes":16777216,"sheet_cells":100000,"rows_first":2000,"rows_last":500,"rows_between":2000,"halvings":0,"cell_chars":16384,"cell_head_chars":4096},"cells_cut":0,"cells_raw":0,"read":"whole","date_system":"1900"}

{"sheet":"INSTRUCTIONS - READ THIS FIRST","index":0,"n_rows":22,"n_cols":3,"rows_kept":22,"cut":false,"hidden":false,"merged":[[27,2,27,8],[28,2,28,8],[23,0,23,2],[14,1,14,8],[4,1,4,8],[8,1,8,8],[10,1,10,8],[12,1,12,8],[29,19,29,21],[8,9,8,11],[56,1,59,8],[35,2,35,8],[36,2,36,8],[29,2,29,8],[24,11,24,17],[25,11,25,17],[26,11,26,17],[27,11,27,17],[28,11,28,17],[21,2,21,8],[24,2,24,8],[25,2,25,8],[41,1,52,8],[26,2,26,8]]}
[]
[]
[]
[]
[null,"The Stepwise Approach towards Rabies Elimination (SARE) has been developed as a template that countries may use to develop activities and measure progress towards a national programme and strategy for sustainable rabies prevention, control and eventually elimination. "]
[]
[null,"This tool focuses on the prevention of dog-transmitted human rabies."]
[]
[null,"SARE is not prescriptive and it is not intended to replace existing regional or national rabies control strategies. This tool may serve as a self-assessment and a practical guide in developing a national rabies program and to successfully implement the different described stages. It helps to achieve the goals set out in the Global Framework (see diagram on the right). "]
[]
[null,"The SARE tool provides measurable steps, designed as a logical flow of activities, to progress from Stage 0 (S0), being endemic for rabies, to Stage 5 (S5), which is freedom from dog-transmitted rabies. "]
[]
[null,"The SARE tool, when used with the Rabies Blueprint provides guidance on the next steps needed and the institutional responsibilities concerning each activity and who might carry out the work."]
[]
[null,"This tool will be most effective when used along with the SARE manual, which explains the steps and outlines key activities needed to progress along the stages. "]
[]
[]
[]
[]
[]
[]
[null,null,"\n"]

{"sheet":"S0-S5","index":1,"n_rows":27,"n_cols":20,"rows_kept":27,"cut":false,"hidden":true,"merged":[[0,12,1,12],[0,14,0,19],[0,0,1,0],[0,2,1,2],[0,4,1,4],[0,6,1,6],[0,8,1,8],[0,10,1,10]]}
["LEGISLATION",null,"DATA COLLECTION AND ANALYSIS",null,"LABORATORY DIAGNOSIS",null,"INFORMATION, EDUCATION AND COMMUNICATION",null,"PREVENTION AND CONTROL",null,"DOG POPULATION RELATED ISSUES",null,"CROSS CUTTING ISSUES",null,"STAGE LEGEND"]
[null,null,null,null,null,null,null,null,null,null,null,null,null,null,0,1,2,3,4,5]
["A case definition consistent with OIE for animal rabies is available",null,"Reporting of dog rabies from local to national level ",null,"Contacts with an international rabies reference laboratory or international collaborating/reference center are established",null,"Communications situation and needs (KAP, training needs, stakeholder analysis) assessed at pilot level",null,"Vaccines for human rabies prophylaxis are available in the country",null,"Dog population studies to determine size, turn-over and accessibility have been conducted in pilot areas",null,"Result of rabies sample(s) are shared appropriately with local and national authorities "]
["A case definition consistent with WHO for human rabies is available",null,"Reporting of human rabies from local to national level",null,"At least one rabies suspect sample of animals or humans is submitted to an international rabies reference laboratory for confirmation ",null,"Target audiences identified for public, professional and advocacy communications (at-risk communities, dog owners, health professionals, at-risk community leaders/authorities, politicians)",null,"A first assessment on access to PEP (and PreP) has been carried out",null,"Other rabies control activities such as IBCM, dog population management have been implemented (at least in pilot areas) ",null,"Identification of main national stakeholders in rabies prevention and control has been carried out"]
["The national authority reports at least one confirmed rabies case to WHO or OIE ",null,"Dog rabies data analysis capacity at the national level has been established",null,"Several rabies suspect samples of animals or humans are submitted to a national laboratory and analysed by an internationally recommended method  ",null,"A rabies communication plan developed for public, professional and advocacy target audiences",null,"Dog rabies vaccines are available in the country",null,"Rabies awareness campaigns including responsible dog ownership have been expanded to more areas",null,"Stakeholder consultations held within the last 3 years"]
["The animal rabies case definition has been disseminated to relevant professionals",null,"Human rabies data analysis capacity at the national level has been established",null,"Rabies diagnostic capacity has been established in at least one national laboratory ",null,"Public awareness activities on rabies prevention, dog bite management and dog vaccination initiated (e.g. WRD)  ",null,"Dog vaccination is initiated in some parts or pilot areas of the country ",null,"Refinement of strategy based on current dog ecology and KAP surveys",null,"Intersectoral rabies task force, committee or working group established at local or national level and meeting at least twice a year"]
["The human rabies case definition has been disseminated to relevant professionals",null,"Dog bite reporting and documentation have been reviewed and data compiled",null,"Routine laboratory diagnosis of animal rabies cases in country",null,"Training or refresher courses on rabies initiated for professionals in human and animal health ",null,"Other rabies control activities such as IBCM, dog population management have been implemented (at least in pilot areas) ",null,"Dog population management and responsible dog ownership campaigns are continued ",null,"Based on pilot area experience, a short term rabies action plan has been developed and endorsed by relevant stakeholders at local / national level"]
["There is a legal framework relevant to rabies prevention and control",null,"Dog population studies to determine size, turn-over and accessibility have been conducted in pilot areas",null,"Capacity for sample collection and transportation has been established ",null,"Information on the epidemiology of rabies is regularly shared with all stakeholders",null,"WHO pre-qualified human rabies vaccines available and accessible in most parts of the country",null,null,null,"Mechanisms for mobilizing emergency funds in case of an outbreak have been identified"]
["If there is a legal framework, the framework has been reviewed to determine if it is adequate.  ",null,"Establishment of linked human and animal rabies surveillance systems, including agreed SOPs",null,"Access to laboratory diagnosis is available throughout the country  for animal samples (and if possible also for human samples)",null,"Rabies communication plan reviewed and updated ",null,"Any use of human biologics not WHO-pre-qualified is being phased out (e.g. nerve tissue vaccines, low quality vaccines)",null,null,null,"Mechanisms for regular intersectoral collaboration are in place and implemented"]
["Rabies is made a notifiable disease in animals ",null,"Human rabies surveillance systems, including feedback mechanism, coordinated between administrative levels (national, province, district, municipal, etc.) ",null,"Regular characterization and analysis of circulating rabies virus variants by a national or international laboratory",null,"Rabies awareness campaigns including responsible dog ownership have been expanded to more areas",null,"Supply and access to WHO pre-qualified human rabies vaccines for PrEP for professionals at risk ensured throughout the pilot areas",null,null,null,"Contribution and role of  private sector clarified and shared with other stakeholders"]
["Rabies is made a notifiable disease in humans ",null,"Animal rabies surveillance systems, including feedback mechanism, coordinated between administrative levels (national, province, district, municipal, etc.)",null,"Maintenance of existing surveillance activities, including ongoing laboratory investigation, for all suspected cases in dogs in the country",null,"Public awareness and sensitization campaigns are tailored to specific target groups (e.g. community leaders, authorities and health professionals, World Rabies Day Activities).",null,"Only quality dog vaccines in accordance with OIE standards are being used",null,null,null,"A national strategy and programme for rabies prevention, control and eventual elimination has been  drafted and shared with all relevant stakeholders"]
["Legislation includes compulsory rabies vaccination of dogs or proposed if not in place",null,"Information on the epidemiology of rabies is regularly shared with all stakeholders",null,"Epidemiological data from routine surveillance of all animals (working animals, livestock and wildlife) used to refine the national rabies strategy",null,"Training of human and animal health personnel has been conducted in most parts of the country",null,"Dog vaccination campaigns are regularly implemented in response to human cases and animal outbreaks",null,null,null,"Government resources identified and allocated in support of the national rabies control strategy and programme  "]
["Legislation includes measures for outbreak response",null,"Conduct field investigations for all suspected human rabies cases ",null,"On-going laboratory investigation of all suspected cases in domestic and wild animal species in the country",null,"Communication plan on rabies elimination is implemented",null,"IBCM SOPs agreed, including sharing of information between sectors",null,null,null,"Refinement of national strategy based on monitoring and evaluation "]
["The animal rabies case definition has been reviewed and endorsed (intersectoral approach)",null,"Epidemiological evidence available to rule out dog- transmitted human rabies cases",null,null,null,"Declaration of  dog-transmitted rabies free zones publicized",null,"SOPs for the observation of dogs involved in biting incidents available ",null,null,null,"Veterinary border inspection and quarantine measures are fully implemented in accordance with national regulations"]
["The human rabies case definition has been reviewed and endorsed (intersectoral approach)",null,"Conduct field investigations and laboratory confirmation for all suspected rabies outbreaks in dogs",null,null,null,"Promote responsible dog ownership together with rabies awareness campaigns",null,"WHO pre-qualified Pre- and Post- Exposure Prophylaxis available and accessible to high risk and exposed individuals throughout the country"]
["Legal frameworks updated to include specifications on compulsory vaccination of dogs and international movement of animals. ",null,"Initiate collection of local or national health economic data on rabies control to make the case for rabies control investment ",null,null,null,"Strengthen public awareness campaigns to advocate dog vaccination to leaders and authorities ",null,"Mass dog vaccination campaigns (at least 70% of the total dog population) are conducted according to the national rabies strategy "]
["Declaration of national dog-transmitted rabies freedom publicized",null,"Expand health economic studies to support further prioritization within the national rabies control programme",null,null,null,"Declaration of national dog-transmitted rabies freedom publicized",null,"Post-vaccination surveys in dogs to evaluate vaccination coverage"]
[null,null,"Maintenance of existing surveillance activities for all suspected cases in humans in the country",null,null,null,"Awareness programmes focusing on maintenance of freedom from dog and dog transmitted human rabies",null,"Capacity to conduct field investigations and planned outbreak response for animal and human rabies cases is available in the entire country"]
[null,null,"Epidemiological data from routine surveillance of all animals (working animals, livestock and wildlife) used to refine the national rabies strategy",null,null,null,"Dog population management and responsible dog ownership campaigns are continued ",null,"Sufficient facilities for observation of rabies-suspected dogs established and comply with international animal welfare regulations"]
[null,null,"On-going surveillance system for rabies maintained",null,null,null,null,null,"Identification of potential rabies free zones where canine variant cases is absent for at least a 2 year period"]
[null,null,null,null,null,null,null,null,"Dog vaccination campaigns are maintained in zones where dog rabies is still present or where otherwise justified (e.g. risk of introduction)"]
[null,null,null,null,null,null,null,null,"Freedom from dog-transmitted rabies in the entire country verified by the absence of canine variant cases for at least a 2 year period"]
[null,null,null,null,null,null,null,null,"Measures to prevent re-introduction applied in designated rabies free zones including dialogue with neighbouring countries."]
[null,null,null,null,null,null,null,null,"Emergency response/contingency plan to any case of animal rabies involving a canine variant developed in preparation of the post elimination phase"]
[null,null,null,null,null,null,null,null,"Modified protocols for PEP administration for rabies free areas implemented"]
[null,null,null,null,null,null,null,null,"Based on risk assessment, dog vaccination campaigns are maintained where justified "]
[null,null,null,null,null,null,null,null,"Capacity for outbreak and re-introduction response maintained"]

{"sheet":"Country profile","index":2,"n_rows":18,"n_cols":10,"rows_kept":18,"cut":false,"hidden":false,"merged":[[2,4,2,8],[12,5,12,8],[2,2,2,3],[4,2,4,4],[5,3,5,4],[6,3,6,4],[9,2,9,4],[10,3,10,4],[4,5,4,8],[5,5,5,8],[6,5,6,8],[9,5,9,8],[7,5,7,8],[10,5,10,8],[11,3,11,4],[11,5,11,8],[5,1,6,1],[10,1,11,1],[17,5,17,8],[15,1,16,1],[14,2,14,4],[15,3,15,4],[16,3,16,4],[14,5,14,8],[15,5,15,8],[16,5,16,8]]}
[]
[]
[null,null,"Country:",null,"Swaziland",null,null,null,null,"(You may select your country's name from the drop-down list)"]
[]
[null,null,"Prepared by:",null,null,"Mbuso Sihlongonyane"]
[null,"HUMAN HEALTH:",null,"Designation:",null,"Medical Officer"]
[null,null,null,"Office:",null,"Regional Hospital"]
[null,null,null,"Date prepared:",null,"2016-10-25"]
[]
[null,null,"Prepared by:",null,null,"Bavukile Kunene"]
[null,"ANIMAL HEALTH:",null,"Designation:",null,"Veterinary Officer"]
[null,null,null,"Office:",null,"Northern Hhohho Vet. Services"]
[null,null,null,"Date prepared:",null,"2016-10-25"]
[]
[null,null,"Prepared by:"]
[null,"EDUCATION / COMMUNCATIONS:",null,"Designation:"]
[null,null,null,"Office:"]
[null,null,null,"Date prepared:"]

{"sheet":"country","index":3,"n_rows":267,"n_cols":1,"rows_kept":267,"cut":false,"hidden":true,"merged":[]}
["Afghanistan"]
["Africa"]
["Aland Islands"]
["Albania"]
["Algeria"]
["American Samoa"]
["Andorra"]
["Angola"]
["Anguilla"]
["Antarctica"]
["Antigua & Barbuda"]
["Argentina"]
["Armenia"]
["Aruba"]
["Asia"]
["Australia"]
["Austria"]
["Azerbaijan"]
["Bahamas, The"]
["Bahrain"]
["Bangladesh"]
["Barbados"]
["Belarus"]
["Belgium"]
["Belize"]
["Benin"]
["Bermuda"]
["Bhutan"]
["Bolivia"]
["Bonaire, St.Eustat, Saba"]
["Bosnia and Herzegovina"]
["Botswana"]
["Bouvet Island"]
["Brazil"]
["British Indian Ocean T."]
["British Virgin Islands"]
["Brunei Darussalam"]
["Bulgaria"]
["Burkina Faso"]
["Burundi"]
["Cabo Verde"]
["Cambodia"]
["Cameroon"]
["Canada"]
["Caribbean, the"]
["Cayman Islands"]
["Central African Republic"]
["Central America"]
["Chad"]
["Chile"]
["China"]
["Christmas Island"]
["Cocos (Keeling) Islands"]
["Colombia"]
["Comoros"]
["Congo"]
["Congo, Dem. Rep. of the"]
["Cook Islands"]
["Costa Rica"]
["Cote D'Ivoire"]
["Croatia"]
["Cuba"]
["Curaçao"]
["Cyprus"]
["Czech Republic"]
["Denmark"]
["Djibouti"]
["Dominica"]
["Dominican Republic"]
["East Timor (Timor-Leste)"]
["Ecuador"]
["Egypt"]
["El Salvador"]
["Equatorial Guinea"]
["Eritrea"]
["Estonia"]
["Ethiopia"]
["Europe"]
["European Union"]
["Falkland Is. (Malvinas)"]
["Faroe Islands"]
["Fiji"]
["Finland"]
["France"]
["French Guiana"]
["French Polynesia"]
["French Southern Terr."]
["Gabon"]
["Gambia, the"]
["Georgia"]
["Germany"]
["Ghana"]
["Gibraltar"]
["Greece"]
["Greenland"]
["Grenada"]
["Guadeloupe"]
["Guam"]
["Guatemala"]
["Guernsey and Alderney"]
["Guiana, French"]
["Guinea"]
["Guinea-Bissau"]
["Guinea, Equatorial"]
["Guyana"]
["Haiti"]
["Heard & McDonald Is."]
["Holy See (Vatican)"]
["Honduras"]
["Hong Kong, (China)"]
["Hungary"]
["Iceland"]
["India"]
["Indonesia"]
["Iran, Islamic Republic of"]
["Iraq"]
["Ireland"]
["Israel"]
["Italy"]
["Ivory Coast (Cote d'Ivoire)"]
["Jamaica"]
["Japan"]
["Jersey"]
["Jordan"]
["Kazakhstan"]
["Kenya"]
["Kiribati"]
["Korea Dem. People's Rep."]
["Korea, (South) Republic of"]
["Kosovo"]
["Kuwait"]
["Kyrgyzstan"]
["Lao People's Dem. Rep."]
["Latvia"]
["Lebanon"]
["Lesotho"]
["Liberia"]
["Libyan Arab Jamahiriya"]
["Liechtenstein"]
["Lithuania"]
["Luxembourg"]
["Macao, (China)"]
["Macedonia, TFYR"]
["Madagascar"]
["Malawi"]
["Malaysia"]
["Maldives"]
["Mali"]
["Malta"]
["Man, Isle of"]
["Marshall Islands"]
["Martinique (FR)"]
["Mauritania"]
["Mauritius"]
["Mayotte (FR)"]
["Mexico"]
["Micronesia, Fed. States of"]
["Middle East"]
["Moldova, Republic of"]
["Monaco"]
["Mongolia"]
["Montenegro"]
["Montserrat"]
["Morocco"]
["Mozambique"]
["Myanmar (ex-Burma)"]
["Namibia"]
["Nauru"]
["Nepal"]
["Netherlands"]
["Netherlands Antilles"]
["New Caledonia"]
["New Zealand"]
["Nicaragua"]
["Niger"]
["Nigeria"]
["Niue"]
["Norfolk Island"]
["North America"]
["Northern Mariana Islands"]
["Norway"]
["Oceania"]
["Oman"]
["Pakistan"]
["Palau"]
["Palestinian Territory"]
["Panama"]
["Papua New Guinea"]
["Paraguay"]
["Peru"]
["Philippines"]
["Pitcairn Island"]
["Poland"]
["Portugal"]
["Puerto Rico"]
["Qatar"]
["Reunion (FR)"]
["Romania"]
["Russia (Russian Fed.)"]
["Rwanda"]
["Sahara, Western"]
["Saint Barthelemy (FR)"]
["Saint Helena (UK)"]
["Saint Kitts and Nevis"]
["Saint Lucia"]
["Saint Martin (FR)"]
["S Pierre & Miquelon(FR)"]
["S Vincent & Grenadines"]
["Samoa"]
["San Marino"]
["Sao Tome and Principe"]
["Saudi Arabia"]
["Senegal"]
["Serbia"]
["Seychelles"]
["Sierra Leone"]
["Singapore"]
["Slovakia"]
["Slovenia"]
["Solomon Islands"]
["Somalia"]
["South Africa"]
["South America"]
["S.George & S.Sandwich"]
["South Sudan"]
["Spain"]
["Sri Lanka (ex-Ceilan)"]
["Sudan"]
["Suriname"]
["Svalbard & Jan Mayen Is."]
["Swaziland"]
["Sweden"]
["Switzerland"]
["Syrian Arab Republic"]
["Taiwan"]
["Tajikistan"]
["Tanzania, United Rep. of"]
["Thailand"]
["Timor-Leste (East Timor)"]
["Togo"]
["Tokelau"]
["Tonga"]
["Trinidad & Tobago"]
["Tunisia"]
["Turkey"]
["Turkmenistan"]
["Turks and Caicos Is."]
["Tuvalu"]
["Uganda"]
["Ukraine"]
["United Arab Emirates"]
["United Kingdom"]
["United States"]
["US Minor Outlying Isl."]
["Uruguay"]
["Uzbekistan"]
["Vanuatu"]
["Vatican (Holy See)"]
["Venezuela"]
["Viet Nam"]
["Virgin Islands, British"]
["Virgin Islands, U.S."]
["Wallis and Futuna"]
["Western Sahara"]
["Yemen"]
["Zambia"]
["Zimbabwe"]

{"sheet":"S-IEC","index":4,"n_rows":25,"n_cols":8,"rows_kept":25,"cut":false,"hidden":true,"merged":[[4,1,11,1],[17,1,24,1],[12,1,16,1],[3,6,3,7]]}
["INFORMATION, EDUCATION AND COMMUNICATION"]
["Instructions: Enter \"0\" under Status if No or None, or \"1\" if Yes"]
[]
["STAGE","subcomponent","ACHIEVEMENTS / ACTIVITIES","OTHER IMPORTANT INFORMATION\n(please include in REMARKS)","STATUS","REMARKS","Rabies Blueprint references and other links"]
[1,"Public awareness","Communications situation and needs assessed at pilot level","e.g. Through KAP survey",1,"radio shows, school workshops","Examples of KAP surveys"]
[1,null,"Target audiences identified at pilot level (e.g. at-risk communities, dog owners, children)",null,1,"mostly school children","4.2.3 Understanding who needs to be involved"]
[1,null,"IEC plan developed and implemented at pilot level","Main messages and intended audiences (e.g. responsible dog ownership, rabies and bite prevention and management)",1,null,"Communication-plan","5.4.7-Awareness-campaign"]
[1,null,"Broad public awareness messaging started at national level","(to increase awareness about responsible dog ownership, rabies and bite prevention and management (e.g. WRD))",1,null,"World Rabies Day"]
[2,null,"IEC plan implemented beyond pilot area","Main messages, intended audience and areas covered",1,"national coverage through radio shows"]
[2,null,"IEC plan reviewed and updated",null,0,null,"Communication-plan"]
[3,null,"IEC plan integrated into national rabies strategy and implemented at national level",null,0]
[5,null,"Awareness programmes focusing on maintenance of freedom from dog and dog transmitted human rabies","Main messages, intended audience",0]
[1,"Professional education","Training needs assessed at pilot level","To assist health professionals to understand rabies and communicate effectively with the public",1,"awareness raised at some health institutions","5.3-Who-do-we-need-to-train"]
[1,null,"Relevant human and animal health professionals identified at pilot level",null,1,"OPD personel"]
[1,null,"Training plan developed at pilot level",null,1,null,"5.5-What-are-we-going-to-do-human-component"]
[1,null,"Training or refresher courses on rabies and public communication initiated for professionals in human and animal health at pilot level","Participant organisations/agencies",1,"veterinary personel","GARC Education Platform"]
[2,null,"Training of human and animal health personnel has been conducted in most parts of the country","Participant organisations/agencies",0,null,"5.3-Who-do-we-need-to-train","GARC Education Platform"]
[1,"Advocacy","Advocacy stakeholder analysis done at pilot level and target audiences identified","(e.g. at-risk community leaders/authorities, politicians) ",1,"MP's","Drafting an advocacy strategy"]
[1,null,"Advocacy plan developed and implemented at pilot level",null,1]
[2,null,"Pilot program successes communicated to authorities/leaders in other parts of the country","Main messages, audiences, areas covered",0]
[2,null,"Advocacy stakeholder analysis done at national level and target audiences identified",null,0]
[2,null,"Advocacy campaign to national leaders/authorities to ensure that national rabies strategy is created and properly resourced","Main messages, audiences",0]
[3,null,"Public declaration of  human  rabies free zones","Areas covered",0]
[4,null,"Public declaration of national dog-transmitted rabies freedom ",null,0]
[4,null,"Public declaration of national human rabies freedom",null,0]

{"sheet":"S-Dog popn","index":5,"n_rows":15,"n_cols":8,"rows_kept":15,"cut":false,"hidden":true,"merged":[[3,6,3,7]]}
["DOG POPULATION RELATED ISSUES"]
["Instructions: Enter \"0\" under Status if No or None, or \"1\" if Yes"]
[]
["STAGE","subcomponent","ACHIEVEMENTS / ACTIVITIES","OTHER IMPORTANT INFORMATION\n(please include in REMARKS)","STATUS","REMARKS","Rabies Blueprint references and other links"]
[1,null,"Stakeholder consultations in pilot areas to create dog population management strategy","Stakeholders involved, how this integrates with rabies control strategy. Studies and surveys from PCO need to be completed before this item.",1,"Annual spay neuter clinics","5.4.16 Dog population management tools","Guidelines-dog-population-management"]
[2,null,"A DPM strategy and programme has been  drafted and shared with all relevant stakeholders in pilot areas",null,1,"post mortem reports"]
[2,null,"DPM strategy finalized",null,0]
[2,null,"Public sensitisation about DPM built in to rabies awareness campaigns in pilot areas",null,0]
[2,null,"Dog population management has been implemented in pilot areas.",null,1,"needs for monitoring and evaluation","Monitoring and evaluation of dog population management programmes"]
[2,null,"Training or refresher courses on animal handling and sterilisation initiated for professionals in animal health in pilot areas","Humane animal catching and handling, surgical sterilisation",1,"veterinary assistants trained on dog handling","GARC Animal Handling and Vaccination course"]
[3,null,"Refinement of strategy based on current dog ecology and KAP surveys",null,0,null,"Knowledge-Attitude-Practice"]
[3,null,"Rabies awareness campaigns including responsible dog ownership have been expanded to more areas","Intended audience and areas covered\n",0,null,"Communication-plan","5.4.16- dog-population-management"]
[3,null,"Veterinary and animal technician training completed across most of country",null,1]
[3,null,"Dog population management has been implemented nationwide",null,0]
[5,null,"Dog population management and responsible dog ownership campaigns are continued",null,0,null,"Guidelines-dog-population-management"]

{"sheet":"T-Prev & Ctrl","index":6,"n_rows":30,"n_cols":9,"rows_kept":30,"cut":false,"hidden":true,"merged":[[4,1,10,1],[19,1,29,1],[11,1,18,1],[3,6,3,8]]}
["PREVENTION AND CONTROL"]
["Instructions: Enter \"0\" under Status if No or None, or \"1\" if Yes"]
[]
["STAGE","subcomponent","ACHIEVEMENTS / ACTIVITIES","OTHER IMPORTANT INFORMATION\n(please include in REMARKS)","STATUS","REMARKS","Rabies Blueprint references and other links"]
[1,"Human vaccines","Vaccines for human rabies prophylaxis are available in available in some parts of the country",null,1,null,"5.5.3-human-biologics","Human-vaccination-supply"]
[1,null,"A first assessment on access to PEP (and PreP) has been carried out",null,1,null,"3.1-Infrastructure"]
[2,null,"WHO pre-qualified human rabies vaccines available and accessible in most parts of the country","Areas available and accessible",1,null,"WHO expert consultation on rabies","WHO vaccines position papers"]
[2,null,"Any use of human biologics not WHO-pre-qualified is being phased out (e.g. nerve tissue vaccines, low quality vaccines)",null,1,null,"WHO prequalified vaccines list"]
[2,null,"Supply and access to WHO pre-qualified human rabies vaccines for PrEP for professionals at risk ensured throughout the pilot areas",null,1,"available for veterinary officials"]
[3,null,"WHO pre-qualified Pre- and Post- Exposure Prophylaxis available and accessible to high risk and exposed individuals throughout the country",null,1,null,"WHO prequalified vaccines list"]
[5,null,"Modified protocols for PEP administration for rabies free areas implemented",null,0,null,"WHO expert consultation on rabies",null,"Guidelines on human prophylaxis"]
[1,"Dog vaccines","Dog rabies vaccines are available in at least one location in the country",null,1,null,"3.1-Infrastructure"]
[1,null,"Dog vaccination is initiated in some parts or pilot areas of the country ","Areas covered",1,"nation wide","5.4-What-are-we-going-to-do-dog-component"]
[2,null,"Only quality dog vaccines in accordance with OIE standards are being used",null,1,null,"OIE terrestrial-manual"]
[2,null,"Dog vaccination campaigns are regularly implemented in response to human cases and animal outbreaks",null,1,null,"5.4-What-are-we-going-to-do-dog-component"]
[3,null,"Mass dog vaccination campaigns (at least 70% of the total dog population) are conducted according to the national rabies strategy ",null,1,null,"5.4.13-Vaccination campaign-coverage"]
[3,null,"Post-vaccination surveys in dogs to evaluate vaccination coverage","Briefly describe post-vaccination survey",0,null,"5.6-Evaluation"]
[4,null,"Dog vaccination campaigns are maintained in zones where dog rabies is still present or where otherwise justified (e.g. risk of introduction)",null,0]
[5,null,"Based on risk assessment, dog vaccination campaigns are maintained where justified",null,0,null,"5.4-What-are-we-going-to-do-dog-component"]
[1,"Outbreak response and other rabies control activities","Integrated Bite Case Management (IBCM) implemented (at least in pilot areas) ",null,1,"intersectoral bite reporting","Operational-activities"]
[1,null,"Protocols/SOPs for coordinated action on reported outbreaks have been elaborated",null,1,null,"Challenges of animal health information systems and surveillance for animal diseases and zoonoses"]
[2,null,"IBCM SOPs agreed, including sharing of information between sectors","Sectors involved. ",1,"information sharing present on ground","WHO expert consultation on rabies","Challenges of animal health information systems and surveillance for animal diseases and zoonoses ","Zoonotic diseases: A guide to collaboration"]
[2,null,"SOPs for the observation of dogs involved in biting incidents available ",null,1,null,"Guidelines-animal-shelters","WHO expert consultation on rabies"]
[3,null,"Capacity to conduct field investigations and planned outbreak response for animal and human rabies cases is available in the entire country","Agencies of personnel involved in field investigations and outbreak response",0,null,"WHO International Health Regulations","Challenges of animal health information systems and surveillance for animal diseases and zoonoses "]
[3,null,"Sufficient facilities for observation of rabies-suspected dogs established and comply with international animal welfare regulations","Number and location of facilities",0,null,"Guidelines-animal-shelters"]
[3,null,"Identification of potential rabies free zones where canine variant cases are absent for at least a 2 year period","Names of rabies free zones",0,null,"5.4.17 Keeping an area rabies-free"]
[4,null,"Freedom from dog-transmitted rabies in the entire country verified by the absence of canine variant cases for at least a 2 year period",null,0,null,"5.4.17 Keeping an area rabies-free"]
[4,null,"Measures to prevent re-introduction applied in designated rabies free zones including dialogue with neighbouring countries.",null,0,null,"5.4.17-successful-maintenance","Challenges of animal health information systems and surveillance for animal diseases and zoonoses "]
[4,null,"Emergency response/contingency plan to any case of animal rabies involving a canine variant developed in preparation of the post elimination phase",null,0,null,"5.4.20 Reintroduction response "]
[5,null,"Capacity for outbreak and re-introduction response maintained",null,0,null,"5.4.17-successful-maintenance"]

{"sheet":"T-Data coll & ax","index":7,"n_rows":25,"n_cols":10,"rows_kept":25,"cut":false,"hidden":true,"merged":[[4,1,22,1],[23,1,24,1],[3,6,3,9]]}
["DATA COLLECTION AND ANALYSIS"]
["Instructions: Enter \"0\" under Status if No or None, or \"1\" if Yes"]
[]
["STAGE","subcomponent","ACHIEVEMENTS / ACTIVITIES","OTHER IMPORTANT INFORMATION\n(please include in REMARKS)","STATUS","REMARKS","Rabies Blueprint references and other links"]
[1,"Surveillance","Reporting of dog rabies from local to national level ",null,1,null,"3.1.3-Infrastructure-surveillance","Challenges of animal health information systems and surveillance for animal diseases and zoonoses ","Zoonotic diseases : a guide to establishing collaboration"," 6. Reporting of rabies data"]
[1,null,"Reporting of human rabies from local to national level",null,1,null,"3.1.3-Infrastructure-surveillance","Challenges of animal health information systems and surveillance for animal diseases and zoonoses ","Zoonotic diseases : a guide to establishing collaboration"," 6. Reporting of rabies data"]
[1,null,"Reporting of all human or animal rabies testing results to relevant international database such as WHO or OIE",null,1,null,"6.7 International databases"]
[1,null,"Dog rabies data analysis capacity at the national level has been established","For example, data analysis infrastructure in place for other diseases/programmes",1,null,"3.1.3-Infrastructure-surveillance","Challenges of animal health information systems and surveillance for animal diseases and zoonoses ","2.3 Animal rabies surveillance"]
[1,null,"Human rabies data analysis capacity at the national level has been established","For example, data analysis infrastructure in place for other diseases/programmes",1,null,"3.1.3-Infrastructure-surveillance","Challenges of animal health information systems and surveillance for animal diseases and zoonoses ","2.2 Human rabies surveillance"]
[1,null,"Animal rabies surveillance system at the national level has been established",null,1,null,"3.1.3-Infrastructure-surveillance","Challenges of animal health information systems and surveillance for animal diseases and zoonoses ","Zoonotic diseases : a guide to establishing collaboration","2.3 Animal rabies surveillance"]
[1,null,"Human rabies surveillance system at the national level has been established",null,1,null,"3.1.3-Infrastructure-surveillance","Challenges of animal health information systems and surveillance for animal diseases and zoonoses ","Zoonotic diseases : a guide to establishing collaboration","2.2 Human rabies surveillance "]
[1,null,"Dog bite reporting and documentation have been reviewed and data compiled",null,1,null,"5.3.1-Rabies-surveillance"]
[1,null,"Dog population studies and KAP surveys to determine size, turn-over and accessibility of dogs for vaccination have been conducted in pilot areas","Year studies were conducted",1,"annual dog census","5.4.1-estimate the number of dogs"]
[2,null,"Establishment of linked human and animal rabies surveillance systems, including agreed SOPs","Please describe the surveillance systems briefly. Note: Implementation of these linked measures is covered under 'Prevention and Control'",1]
[2,null,"Human rabies surveillance systems, including feedback mechanism, are functioning and coordinated between administrative levels (national, province, district, municipal, etc.) ","Timeliness of reporting and feedback, and stakeholders involved.",0,null,"5.1.1-epidemiology-of-rabies","WHO International Health Regulations"]
[2,null,"Animal rabies surveillance systems, including feedback mechanism, are functioning and coordinated between administrative levels (national, province, district, municipal, etc.)","Timeliness of reporting and feedback, and stakeholders involved.",0,null,"5.1.1-epidemiology-of-rabies","OIE Terrestrial Animal Health Code"]
[2,null,"Information on the epidemiology of rabies is regularly shared with all stakeholders","Stakeholders involved - e.g. policy makers, educators, NGOs",0,null,"5.1.1-epidemiology-of-rabies","WHO International Health Regulations","OIE Terrestrial Animal Health Code","2. Roles-and-Responsibilities"]
[3,null,"Conduct field investigations for all suspected human rabies cases ",null,1,null,"2.2 Human rabies surveillance "]
[3,null,"Epidemiological evidence available to rule out dog- transmitted human rabies cases",null,0]
[3,null,"Conduct field investigations and laboratory confirmation for all suspected rabies outbreaks in dogs",null,1]
[4,null,"Maintenance of existing surveillance activities for all suspected cases in humans in the country","Please answer '1' only if you have adequate functional surveillance based on your answers for earlier stages.",0]
[4,null,"Epidemiological data from routine surveillance of all animals (working animals, livestock and wildlife) used to refine the national rabies strategy",null,0,null,"WHO International Health Regulations"]
[5,null,"On-going surveillance system for rabies maintained",null,0,null,"WHO International Health Regulations","OIE Terrestrial Animal Health Code"]
[3,"Health economic studies","Initiate collection of local or national health economic data on rabies control to make the case for rabies control investment ",null,0,null,"Public-health-and-economic-burden-of rabies","Health economic studies on rabies"]
[3,null,"Expand health economic studies to support further prioritization within the national rabies control programme",null,0,null,"Health economic studies on rabies","Comparing-PEP-costs"]

{"sheet":"T-Lab dx","index":8,"n_rows":16,"n_cols":11,"rows_kept":16,"cut":false,"hidden":true,"merged":[[4,1,5,1],[6,1,15,1],[3,6,3,10]]}
["LABORATORY DIAGNOSIS"]
["Instructions: Enter \"0\" under Status if No or None, or \"1\" if Yes"]
[]
["STAGE","subcomponent","ACHIEVEMENTS / ACTIVITIES","OTHER IMPORTANT INFORMATION\n(please include in REMARKS)","STATUS","REMARKS","Rabies Blueprint references and other links"]
[0,"Specimen referral","Contacts with an international rabies reference laboratory or international collaborating/reference center are established","Names of international rabies reference laboratories or collaborating/reference centers",1," Onddersterport ","3.1.7 Which laboratories are-available","OIE reference laboratories","WHO collaborating centres","FAO reference centre","WHO expert consultation on rabies"]
[0,null,"At least one rabies suspect sample of animals or humans is submitted to an international rabies reference laboratory for confirmation ","Year of most recent specimen referral;\nName of international rabies reference laboratory",1,null,"Simple-techniques-for animal brain-sampling","3.6 Human samples"]
[1,"Laboratory capacity and testing","Rabies diagnostic capacity has been established in at least one national laboratory ",null,1,null,"3.1.8 Minimum laboratory requirements","OIE Manual of Diagnostic Tests and Vaccines  for Terrestrial Animals  "," Laboratory biorisk management/"]
[1,null,"Several rabies suspect samples of animals or humans are submitted to a national laboratory and analysed ","Name of national laboratory;\nLaboratory test used",1,"CVL Manzini","Simple-techniques-for animal brain-sampling","Manual of Diagnostic Tests and Vaccines for Terrestrial Animals 2016","WHO guidance on regulations for the transport of infectious substances"]
[1,null,"Animal rabies diagnosis conducted in at least one national laboratory",null,1,null,"4. Laboratory rabies diagnosis"]
[1,null,"Twice yearly rabies suspect samples of animals or humans are submitted to a international laboratory and analysed",null,1,null,"6.7 International databases"]
[2,null,"Routine laboratory diagnosis of animal rabies cases in country","Name and location of laboratories",1,"CVL Manzini","3.1.8 Minimum laboratory requirements","Laboratory biorisk management"]
[2,null,"Capacity for sample collection and transportation has been established ",null,1,null,"OIE Manual of Diagnostic Tests and Vaccines  for Terrestrial Animals ","Laboratory biorisk management","5.3.1-Rabies-surveillance"]
[3,null,"Access to laboratory diagnosis is available throughout the country  for animal samples (and if possible also for human samples)","Names and locations of laboratories",1,null,"3.1.8-laboratory diagnosis","4. Laboratory rabies diagnosis"]
[3,null,"Regular characterization and analysis of circulating rabies virus variants by a national or international laboratory","Name of institute where molecular tests are being performed",0,null,"OIE reference laboratories","WHO collaborating centres  ","WHO expert consultation on rabies","FAO reference centre"]
[4,null,"Maintenance of existing surveillance activities, including ongoing laboratory investigation, for all suspected cases in dogs in the country","Please answer '1' only if you have adequate functional surveillance based on your answers for earlier stages.",0,null,"OIE Terrestrial Animal Health Code"]
[5,null,"On-going laboratory investigation of all suspected cases in domestic and wild animal species in the country",null,0,null,"OIE Terrestrial Animal Health Code"]

{"sheet":"O-Cross-cutting issues","index":9,"n_rows":16,"n_cols":9,"rows_kept":16,"cut":false,"hidden":true,"merged":[[10,1,15,1],[4,1,9,1],[3,6,3,8]]}
["CROSS-CUTTING ISSUES"]
["Instructions: Enter \"0\" under Status if No or None, or \"1\" if Yes"]
[]
["STAGE","subcomponent","ACHIEVEMENTS / ACTIVITIES","OTHER IMPORTANT INFORMATION\n(please include in REMARKS)","STATUS","REMARKS","Rabies Blueprint references and other links"]
[0,"Intersectoral collaboration","Result of rabies sample(s) are shared appropriately with local and national authorities ","Agencies involved",0,null,"6. Reporting of rabies data"]
[1,null,"Identification of main national stakeholders in rabies prevention and control has been carried out","Agencies of stakeholders involved",1,"Swaziland Animal Welfare, Police","2. Roles-and-Responsibilities","Challenges of animal health information systems and surveillance for animal diseases and zoonoses "]
[1,null,"Stakeholder consultations held within the last 3 years at the national level",null,0,null,"2. Roles-and-Responsibilities"]
[1,null,"Intersectoral rabies task force, committee or working group established at local or national level and meeting at least twice a year","Agencies of members of task force",0,null,"2. Roles-and-Responsibilities","Challenges of animal health information systems and surveillance for animal diseases and zoonoses "]
[2,null,"Mechanisms for regular intersectoral collaboration are in place and implemented",null,0,null,"2. Roles-and-Responsibilities"]
[2,null,"Contribution and role of  private sector clarified and shared with other stakeholders",null,0,null,"2. Roles-and-Responsibilities"]
[1,"National programme and strategy","Based on pilot area experience, a short term rabies action plan has been developed and endorsed by relevant stakeholders at local / national level",null,0,null,"5.1-What-do-we-need-to-know-before","1.8-What-measures-are-available","2. Roles-and-Responsibilities"]
[1,null,"Mechanisms for mobilizing emergency funds in case of an outbreak have been identified",null,1,null,"3.3-Costs-and-Funding"]
[2,null,"A national strategy and programme for rabies prevention, control and eventual elimination has been  drafted and shared with all relevant stakeholders",null,0,null,"Components-of-a-successful-rabies-programme"]
[2,null,"Government resources identified and allocated in support of the national rabies control strategy and programme  ",null,1,null,"3.3-Costs-and-Funding"]
[3,null,"Refinement of national strategy based on monitoring and evaluation ",null,0,null,"5.6-Evaluation","5.7.1-Sustainability"]
[4,null,"Veterinary border inspection and quarantine measures are fully implemented in accordance with national regulations",null,0,null,"OIE Terrestrial Animal Health Code"]

{"sheet":"P-Legislation","index":10,"n_rows":18,"n_cols":10,"rows_kept":18,"cut":false,"hidden":true,"merged":[[4,1,6,1],[7,1,9,1],[3,6,3,9],[10,1,17,1]]}
["LEGISLATION"]
["Instructions: Enter \"0\" under Status if No or None, or \"1\" if Yes"]
[]
["STAGE","subcomponent","ACHIEVEMENTS / ACTIVITIES","OTHER IMPORTANT INFORMATION\n(please include in REMARKS)","STATUS","REMARKS","Rabies Blueprint references and other links"]
[0,"National case definition for animal rabies","A case definition consistent with OIE for animal rabies is available",null,1,null,"OIE Terrestrial Animal Health Code"]
[1,null,"The animal rabies case definition has been disseminated to relevant professionals","Agencies the case definition was disseminated to",1,null,"OIE Terrestrial Animal Health Code"]
[2,null,"The animal rabies case definition has been reviewed and endorsed (intersectoral approach)","Agencies and lowest local government unit the definition was endorsed to",0,null,"3.2.9-How-to-make-rabies-notifiable","OIE Terrestrial Animal Health Code"]
[0,"National case definition for human rabies","A case definition consistent with WHO for human rabies is available",null,1,null,"WHO expert consultation on rabies"]
[1,null,"The human rabies case definition has been disseminated to relevant professionals","Agencies the case definition was disseminated to",1,null,"WHO expert consultation on rabies"]
[2,null,"The human rabies case definition has been reviewed and endorsed (intersectoral approach)","Agencies and lowest local government unit the definition was endorsed to",0,null,"3.2.9-How-to-make-rabies-notifiable","WHO expert consultation on rabies"]
[0,"Legal framework","The national authority reports at least one confirmed rabies case to WHO or OIE ","Year of last reported rabies case",1,null,"WHO Collaborating Centres and OIE Reference Laboratories"]
[1,null,"There is a national legal framework relevant to rabies prevention and control","Title of the framework and the year it was passed",1,null,"3.2. Legislation"]
[1,null,"If there is a legal framework, the framework has been reviewed to determine if it is adequate.  ","Year the framework was reviewed",0]
[1,null,"Rabies is made a notifiable disease in animals ",null,1,null,"3.2. Legislation","3.2.3-Why-does-rabies-need-to-be-notifiable","OIE Terrestrial Animal Health Code","3.2.9-How-to-make-rabies-notifiable"]
[1,null,"Rabies is made a notifiable disease in humans ",null,1,null,"3.2. Legislation","3.2.3-Why-does-rabies-need-to-be-notifiable","WHO expert consultation on rabies","3.2.9-How-to-make-rabies-notifiable"]
[1,null,"Legislation includes compulsory rabies vaccination of dogs or proposed if not in place",null,1]
[1,null,"Legislation includes measures for outbreak response",null,1]
[2,null,"Legal frameworks updated to include specifications on compulsory vaccination of dogs and international movement of animals. ",null,1,null,"General-guide-on-veterinary legislation","3.2.11- laws-and-by-laws"]

{"sheet":"key acts","index":11,"n_rows":46,"n_cols":6,"rows_kept":46,"cut":false,"hidden":true,"merged":[]}
["STAGE","COMPONENT","KEY ACTIVITIES"]
[0,"LAB","Contacts with an international rabies reference laboratory or international collaborating/reference center are established",null,"Row Labels","Count of KEY ACTIVITIES"]
[0,"LAB","At least one rabies suspect sample of animals or humans is submitted to an international rabies reference laboratory for confirmation ",null,0,4]
[0,"LAB","Several rabies suspect samples of animals or humans are submitted to a national laboratory and analysed by an internationally recommended method  ",null,1,10]
[0,"LEG","The national authority reports at least one confirmed rabies case to WHO or OIE ",null,2,8]
[1,"CCI","Based on pilot area experience, a short term rabies action plan has been developed and endorsed by relevant stakeholders at local / national level",null,3,9]
[1,"CCI","Intersectoral rabies task force, committee or working group established at local or national level and meeting at least twice a year",null,4,7]
[1,"DCA","Reporting of dog rabies from local to national level ",null,5,7]
[1,"DCA","Reporting of human rabies from local to national level",null,"Grand Total",45]
[1,"IEC","IEC plan developed and implemented at pilot level"]
[1,"LAB","Rabies diagnostic capacity has been established in at least one national laboratory "]
[1,"LEG","Rabies is made a notifiable disease in animals "]
[1,"LEG","Rabies is made a notifiable disease in humans "]
[1,"PCO","Vaccines for human rabies prophylaxis are available in available in some parts of the country"]
[1,"PCO","Dog rabies vaccines are available in at least one location in the country"]
[2,"CCI","A national strategy and programme for rabies prevention, control and eventual elimination has been  drafted and shared with all relevant stakeholders"]
[2,"CCI","Government resources identified and allocated in support of the national rabies control strategy and programme  "]
[2,"DCA","Information on the epidemiology of rabies is regularly shared with all stakeholders"]
[2,"IEC","Advocacy campaign to national leaders/authorities to ensure that national rabies strategy is created and properly resourced"]
[2,"LEG","Legal frameworks updated to include specifications on compulsory vaccination of dogs and international movement of animals. "]
[2,"PCO","WHO pre-qualified human rabies vaccines available and accessible in most parts of the country"]
[2,"PCO","Supply and access to WHO pre-qualified human rabies vaccines for PrEP for professionals at risk ensured throughout the pilot areas"]
[2,"PCO","Dog vaccination campaigns are regularly implemented in response to human cases and animal outbreaks"]
[3,"DCA","Conduct field investigations for all suspected human rabies cases "]
[3,"DCA","Epidemiological evidence available to rule out dog- transmitted human rabies cases"]
[3,"DCA","Conduct field investigations and laboratory confirmation for all suspected rabies outbreaks in dogs"]
[3,"IEC","Public declaration of  human  rabies free zones"]
[3,"IEC","IEC plan integrated into national rabies strategy and implemented at national level"]
[3,"PCO","WHO pre-qualified Pre- and Post- Exposure Prophylaxis available and accessible to high risk and exposed individuals throughout the country"]
[3,"PCO","Identification of potential rabies free zones where canine variant cases are absent for at least a 2 year period"]
[3,"PCO","Mass dog vaccination campaigns (at least 70% of the total dog population) are conducted according to the national rabies strategy "]
[3,"PCO","Post-vaccination surveys in dogs to evaluate vaccination coverage"]
[4,"DCA","Maintenance of existing surveillance activities for all suspected cases in humans in the country"]
[4,"DCA/LAB","Epidemiological data from routine surveillance of all animals (working animals, livestock and wildlife) used to refine the national rabies strategy"]
[4,"LAB","Maintenance of existing surveillance activities, including ongoing laboratory investigation, for all suspected cases in dogs in the country"]
[4,"IEC","Public declaration of national dog-transmitted rabies freedom "]
[4,"PCO","Dog vaccination campaigns are maintained in zones where dog rabies is still present or where otherwise justified (e.g. risk of introduction)"]
[4,"PCO","Freedom from dog-transmitted rabies in the entire country verified by the absence of canine variant cases for at least a 2 year period"]
[4,"PCO","Emergency response/contingency plan to any case of animal rabies involving a canine variant developed in preparation of the post elimination phase"]
[5,"DCA","On-going surveillance system for rabies maintained"]
[5,"IEC","Awareness programmes focusing on maintenance of freedom from dog and dog transmitted human rabies"]
[5,"DPO","Dog population management and responsible dog ownership campaigns are continued"]
[5,"LAB","On-going laboratory investigation of all suspected cases in domestic and wild animal species in the country"]
[5,"PCO","Modified protocols for PEP administration for rabies free areas implemented"]
[5,"PCO","Based on risk assessment, dog vaccination campaigns are maintained where justified"]
[5,"PCO","Capacity for outbreak and re-introduction response maintained"]

{"sheet":"masterlist","index":12,"n_rows":1,"n_cols":7,"rows_kept":1,"cut":false,"hidden":true,"merged":[]}
["IEC","DPO","PCO","DCA","LAB","CCI","LEG"]

{"sheet":"SUMMARY (Score)","index":13,"n_rows":25,"n_cols":10,"rows_kept":25,"cut":false,"hidden":false,"merged":[[14,5,15,5],[14,6,15,6],[14,7,15,7],[14,8,15,8],[4,4,4,9],[10,7,11,7],[10,8,11,8],[12,5,13,5],[12,6,13,6],[12,7,13,7],[12,8,13,8],[6,5,7,5],[6,6,7,6],[6,7,7,7],[6,8,7,8],[8,5,9,5],[10,5,11,5],[10,6,11,6],[0,0,0,9],[4,0,4,2],[5,4,5,5],[2,0,2,9],[8,6,9,6],[8,7,9,7],[8,8,9,8]]}
[{"$f":"CONCATENATE(\"Stepwise Approach towards Rabies Elimination - \",'Country profile'!E3,\" \",YEAR('Country profile'!F13))","v":"Stepwise Approach towards Rabies Elimination - Swaziland 2016"}]
[]
[{"$f":"CONCATENATE(\"STAGE   \",((INDEX(E7:E18,MATCH(\"PENDING\",J7:J18,0)))))","v":"STAGE   1.5"}]
[]
["ACTIVITY SUMMARY",null,null,null,"STAGE SUMMARY"]
["COMPONENTS","PENDING ACTIVITIES","ACCOMPLISHED ACTIVITIES",null,"STAGE",null,"PENDING ACTIVITIES","ACCOMPLISHED ACTIVITIES","CRITICAL ACTIVITIES ACCOMPLISHED","STAGE COMPLETED?"]
["Legislation\n    Total number of activities = 14",{"$f":"(COUNT(STATUS))-C7","v":3},{"$f":"SUM('P-Legislation'!E:E)","v":11},null,0,"Total number of activities = 6\n",{"$f":"COUNTIF('SUMMARY (S0-S5)'!N6:N8,\"?*\")+COUNTIF('SUMMARY (S0-S5)'!H6:H8,\"?*\")+COUNTIF('SUMMARY (S0-S5)'!J6:J8,\"?*\")+COUNTIF('SUMMARY (S0-S5)'!B6:B8,\"?*\")+COUNTIF('SUMMARY (S0-S5)'!F6:F8,\"?*\")+COUNTIF('SUMMARY (S0-S5)'!D6:D8,\"?*\")+COUNTIF('SUMMARY (S0-S5)'!L6:L8,\"?*\")","v":1},{"$f":"COUNTIF('SUMMARY (S0-S5)'!O6:O8,\"?*\")+COUNTIF('SUMMARY (S0-S5)'!I6:I8,\"?*\")+COUNTIF('SUMMARY (S0-S5)'!K6:K8,\"?*\")+COUNTIF('SUMMARY (S0-S5)'!C6:C8,\"?*\")+COUNTIF('SUMMARY (S0-S5)'!G6:G8,\"?*\")+COUNTIF('SUMMARY (S0-S5)'!E6:E8,\"?*\")+COUNTIF('SUMMARY (S0-S5)'!M6:M8,\"?*\")","v":5},{"$f":"COUNTIF('P-Legislation'!E11,\"1\")+COUNTIF('T-Lab dx'!E5,\"1\")+COUNTIF('T-Lab dx'!E6,\"1\")","v":3},{"$f":"IF(I7>=2,\"COMPLETED\",IF(AND(I7>=1,H7>=4),\"COMPLETED\",\"PENDING\"))","v":"COMPLETED"}]
[null,null,null,null,0.5,null,null,null,null,{"$f":"IF(I7=3,\"COMPLETED\",\"PENDING\")","v":"COMPLETED"}]
["Data collection and analysis\n    Total number of activities = 21",{"$f":"(COUNT(datastatus)-'SUMMARY (Score)'!C9)","v":9},{"$f":"SUM('T-Data coll & ax'!E:E)","v":12},null,1,"Total number of activities = 43\n",{"$f":"COUNTIF('SUMMARY (S0-S5)'!N9:N18,\"?*\")+COUNTIF('SUMMARY (S0-S5)'!H9:H18,\"?*\")+COUNTIF('SUMMARY (S0-S5)'!J9:J18,\"?*\")+COUNTIF('SUMMARY (S0-S5)'!B9:B18,\"?*\")+COUNTIF('SUMMARY (S0-S5)'!F9:F18,\"?*\")+COUNTIF('SUMMARY (S0-S5)'!D9:D18,\"?*\")+COUNTIF('SUMMARY (S0-S5)'!L9:L18,\"?*\")","v":4},{"$f":"COUNTIF('SUMMARY (S0-S5)'!O9:O18,\"?*\")+COUNTIF('SUMMARY (S0-S5)'!I9:I18,\"?*\")+COUNTIF('SUMMARY (S0-S5)'!K9:K18,\"?*\")+COUNTIF('SUMMARY (S0-S5)'!C9:C18,\"?*\")+COUNTIF('SUMMARY (S0-S5)'!G9:G18,\"?*\")+COUNTIF('SUMMARY (S0-S5)'!E9:E18,\"?*\")+COUNTIF('SUMMARY (S0-S5)'!M9:M18,\"?*\")","v":39},{"$f":"COUNTIF('O-Cross-cutting issues'!E11,\"1\")+COUNTIF('O-Cross-cutting issues'!E8,\"1\")+COUNTIF('T-Data coll & ax'!E5,\"1\")+COUNTIF('T-Data coll & ax'!E6,\"1\")+COUNTIF('S-IEC'!E7,\"1\")+COUNTIF('T-Lab dx'!E7,\"1\")+COUNTIF('P-Legislation'!E14,\"1\")+COUNTIF('P-Legislation'!E15,\"1\")+COUNTIF('T-Prev & Ctrl'!E5,\"1\")+COUNTIF('T-Prev & Ctrl'!E12,\"1\")","v":8},{"$f":"IF(I9>=5,\"COMPLETED\",IF(AND(I9>=1,H9>2),\"COMPLETED\",\"PENDING\"))","v":"COMPLETED"}]
[null,null,null,null,1.5,null,null,null,null,{"$f":"IF(I9=10,\"COMPLETED\",\"PENDING\")","v":"PENDING"}]
["Laboratory diagnosis\n    Total number of activities = 12",{"$f":"COUNT(labstatus)-'SUMMARY (Score)'!C11","v":3},{"$f":"SUM('T-Lab dx'!E:E)","v":9},null,2,"Total number of activities = 31\n",{"$f":"COUNTIF('SUMMARY (S0-S5)'!N19:N25,\"?*\")+COUNTIF('SUMMARY (S0-S5)'!H19:H25,\"?*\")+COUNTIF('SUMMARY (S0-S5)'!J19:J25,\"?*\")+COUNTIF('SUMMARY (S0-S5)'!B19:B25,\"?*\")+COUNTIF('SUMMARY (S0-S5)'!F19:F25,\"?*\")+COUNTIF('SUMMARY (S0-S5)'!D19:D25,\"?*\")+COUNTIF('SUMMARY (S0-S5)'!L19:L25,\"?*\")","v":15},{"$f":"COUNTIF('SUMMARY (S0-S5)'!O19:O25,\"?*\")+COUNTIF('SUMMARY (S0-S5)'!I19:I25,\"?*\")+COUNTIF('SUMMARY (S0-S5)'!K19:K25,\"?*\")+COUNTIF('SUMMARY (S0-S5)'!C19:C25,\"?*\")+COUNTIF('SUMMARY (S0-S5)'!G19:G25,\"?*\")+COUNTIF('SUMMARY (S0-S5)'!E19:E25,\"?*\")+COUNTIF('SUMMARY (S0-S5)'!M19:M25,\"?*\")","v":16},{"$f":"COUNTIF('O-Cross-cutting issues'!E13,\"1\")+COUNTIF('O-Cross-cutting issues'!E14,\"1\")+COUNTIF('T-Data coll & ax'!E17,\"1\")+COUNTIF('S-IEC'!E22,\"1\")+COUNTIF('P-Legislation'!E18,\"1\")+COUNTIF('T-Prev & Ctrl'!E7,\"1\")+COUNTIF('T-Prev & Ctrl'!E9,\"1\")+COUNTIF('T-Prev & Ctrl'!E15,\"1\")","v":5},{"$f":"IF(I11>=4,\"COMPLETED\",IF(AND(I11>=1,H11>15),\"COMPLETED\",\"PENDING\"))","v":"COMPLETED"}]
[null,null,null,null,2.5,null,null,null,null,{"$f":"IF(I11=8,\"COMPLETED\",\"PENDING\")","v":"PENDING"}]
["Information, Education, Communication\n    Total number of activities = 21",{"$f":"COUNT(iecstatus)-'SUMMARY (Score)'!C13","v":10},{"$f":"SUM('S-IEC'!E:E)","v":11},null,3,"Total number of activities = 20\n",{"$f":"COUNTIF('SUMMARY (S0-S5)'!N26:N31,\"?*\")+COUNTIF('SUMMARY (S0-S5)'!H26:H31,\"?*\")+COUNTIF('SUMMARY (S0-S5)'!J26:J31,\"?*\")+COUNTIF('SUMMARY (S0-S5)'!B26:B31,\"?*\")+COUNTIF('SUMMARY (S0-S5)'!F26:F31,\"?*\")+COUNTIF('SUMMARY (S0-S5)'!D26:D31,\"?*\")+COUNTIF('SUMMARY (S0-S5)'!L26:L31,\"?*\")","v":14},{"$f":"COUNTIF('SUMMARY (S0-S5)'!O26:O31,\"?*\")+COUNTIF('SUMMARY (S0-S5)'!I26:I31,\"?*\")+COUNTIF('SUMMARY (S0-S5)'!K26:K31,\"?*\")+COUNTIF('SUMMARY (S0-S5)'!C26:C31,\"?*\")+COUNTIF('SUMMARY (S0-S5)'!G26:G31,\"?*\")+COUNTIF('SUMMARY (S0-S5)'!E26:E31,\"?*\")+COUNTIF('SUMMARY (S0-S5)'!M26:M31,\"?*\")","v":6},{"$f":"COUNTIF('T-Data coll & ax'!E18,\"1\")+COUNTIF('T-Data coll & ax'!E19,\"1\")+COUNTIF('T-Data coll & ax'!E20,\"1\")+COUNTIF('S-IEC'!E23,\"1\")+COUNTIF('S-IEC'!E11,\"1\")+COUNTIF('T-Prev & Ctrl'!E10,\"1\")+COUNTIF('T-Prev & Ctrl'!E26,\"1\")+COUNTIF('T-Prev & Ctrl'!E16,\"1\")+COUNTIF('T-Prev & Ctrl'!E17,\"1\")","v":4},{"$f":"IF(I13>4,\"COMPLETED\",IF(AND(I13>=1,H13>0),\"COMPLETED\",\"PENDING\"))","v":"COMPLETED"}]
[null,null,null,null,3.5,null,null,null,null,{"$f":"IF(I13=9,\"COMPLETED\",\"PENDING\")","v":"PENDING"}]
["Prevention and Control\n    Total number of activities = 25",{"$f":"COUNT(prevstatus)-'SUMMARY (Score)'!C15","v":11},{"$f":"SUM('T-Prev & Ctrl'!E:E)","v":15},null,4,"Total number of activities = 10\n",{"$f":"COUNTIF('SUMMARY (S0-S5)'!N32:N35,\"?*\")+COUNTIF('SUMMARY (S0-S5)'!H32:H35,\"?*\")+COUNTIF('SUMMARY (S0-S5)'!J32:J35,\"?*\")+COUNTIF('SUMMARY (S0-S5)'!B32:B35,\"?*\")+COUNTIF('SUMMARY (S0-S5)'!F32:F35,\"?*\")+COUNTIF('SUMMARY (S0-S5)'!D32:D35,\"?*\")+COUNTIF('SUMMARY (S0-S5)'!L32:L35,\"?*\")","v":10},{"$f":"COUNTIF('SUMMARY (S0-S5)'!O32:O35,\"?*\")+COUNTIF('SUMMARY (S0-S5)'!I32:I35,\"?*\")+COUNTIF('SUMMARY (S0-S5)'!K32:K35,\"?*\")+COUNTIF('SUMMARY (S0-S5)'!C32:C35,\"?*\")+COUNTIF('SUMMARY (S0-S5)'!G32:G35,\"?*\")+COUNTIF('SUMMARY (S0-S5)'!E32:E35,\"?*\")+COUNTIF('SUMMARY (S0-S5)'!M32:M35,\"?*\")","v":0},{"$f":"COUNTIF('T-Lab dx'!E15,\"1\")+COUNTIF('T-Data coll & ax'!E21,\"1\")+COUNTIF('T-Data coll & ax'!E22,\"1\")+COUNTIF('T-Prev & Ctrl'!E18,\"1\")+COUNTIF('T-Prev & Ctrl'!E27,\"1\")+COUNTIF('S-IEC'!E24,\"1\")+COUNTIF('T-Prev & Ctrl'!E29,\"1\")","v":0},{"$f":"IF(I15>3,\"COMPLETED\",IF(AND(I15>=1,H15>5),\"COMPLETED\",\"PENDING\"))","v":"PENDING"}]
[null,null,null,null,4.5,null,null,null,null,{"$f":"IF(I15=7,\"COMPLETED\",\"PENDING\")","v":"PENDING"}]
["Dog population related issues\n    Total number of activities = 11",{"$f":"(COUNT(dogstatus)-'SUMMARY (Score)'!C17)","v":6},{"$f":"SUM('S-Dog popn'!E:E)","v":5},null,5,"Total number of activities = 7\n",{"$f":"COUNTIF('SUMMARY (S0-S5)'!N36:N38,\"?*\")+COUNTIF('SUMMARY (S0-S5)'!H36:H38,\"?*\")+COUNTIF('SUMMARY (S0-S5)'!J36:J38,\"?*\")+COUNTIF('SUMMARY (S0-S5)'!B36:B38,\"?*\")+COUNTIF('SUMMARY (S0-S5)'!F36:F38,\"?*\")+COUNTIF('SUMMARY (S0-S5)'!D36:D38,\"?*\")+COUNTIF('SUMMARY (S0-S5)'!L36:L38,\"?*\")","v":7},{"$f":"COUNTIF('SUMMARY (S0-S5)'!O36:O38,\"?*\")+COUNTIF('SUMMARY (S0-S5)'!I36:I38,\"?*\")+COUNTIF('SUMMARY (S0-S5)'!K36:K38,\"?*\")+COUNTIF('SUMMARY (S0-S5)'!C36:C38,\"?*\")+COUNTIF('SUMMARY (S0-S5)'!G36:G38,\"?*\")+COUNTIF('SUMMARY (S0-S5)'!E36:E38,\"?*\")+COUNTIF('SUMMARY (S0-S5)'!M36:M38,\"?*\")","v":0},{"$f":"H17","v":0},{"$f":"IF(I17=7,\"COMPLETED\",\"PENDING\")","v":"PENDING"}]
[null,null,null,null,5,null,null,null,null,"PENDING"]
["Cross-cutting issues\n        Total number of activities = 12",{"$f":"COUNT(crossstatus)-'SUMMARY (Score)'!C19","v":9},{"$f":"SUM('O-Cross-cutting issues'!E:E)","v":3}]
[]
[]
[]
[]
[]
["SARE Stage Keys for Stage Progression"]

{"sheet":"SUMMARY (S0-S5)","index":14,"n_rows":38,"n_cols":15,"rows_kept":38,"cut":false,"hidden":false,"merged":[[3,3,3,4],[3,11,3,12],[3,0,4,0],[3,13,3,14],[3,7,3,8],[3,9,3,10],[3,1,3,2],[3,5,3,6]]}
["Stepwise Approach towards Rabies Elimination",null,null,{"$f":"IF(ISBLANK('Country profile'!E3),\"\",UPPER('Country profile'!E3))","v":"SWAZILAND"},{"$f":"IF(ISBLANK('Country profile'!F13),\"\",YEAR('Country profile'!F13))","v":2016}]
["SUMMARY OF RABIES PROGRAM ACTIVITIES"]
[]
["STAGE","INFORMATION, EDUCATION, COMMUNICATION",null,"DOG POPULATION RELATED ISSUES",null,"PREVENTION & CONTROL",null,"DATA COLLECTION & ANALYSIS",null,"LABORATORY DIAGNOSIS",null,"CROSS-CUTTING ISSUES",null,"LEGISLATION"]
[null,"Pending","Accomplished","Pending","Accomplished","Pending","Accomplished","Pending","Accomplished","Pending","Accomplished","Pending","Accomplished","Pending","Accomplished"]
[0,null,null,null,null,null,null,null,null,{"$f":"IF('T-Lab dx'!E5=0,'T-Lab dx'!C5,\"\")","v":""},{"$f":"IF('T-Lab dx'!E5=1,'T-Lab dx'!C5,\"\")","v":"Contacts with an international rabies reference laboratory or international collaborating/reference center are established"},{"$f":"IF('O-Cross-cutting issues'!E5=0,'O-Cross-cutting issues'!C5,\"\")","v":"Result of rabies sample(s) are shared appropriately with local and national authorities "},{"$f":"IF('O-Cross-cutting issues'!E5=1,'O-Cross-cutting issues'!C5,\"\")","v":""},{"$f":"IF('P-Legislation'!E5=0,'P-Legislation'!C5,\"\")","v":""},{"$f":"IF('P-Legislation'!E5=1,'P-Legislation'!C5,\"\")","v":"A case definition consistent with OIE for animal rabies is available"}]
[null,null,null,null,null,null,null,null,null,{"$f":"IF('T-Lab dx'!E6=0,'T-Lab dx'!C6,\"\")","v":""},{"$f":"IF('T-Lab dx'!E6=1,'T-Lab dx'!C6,\"\")","v":"At least one rabies suspect sample of animals or humans is submitted to an international rabies reference laboratory for confirmation "},null,null,{"$f":"IF('P-Legislation'!E8=0,'P-Legislation'!C8,\"\")","v":""},{"$f":"IF('P-Legislation'!E8=1,'P-Legislation'!C8,\"\")","v":"A case definition consistent with WHO for human rabies is available"}]
[null,null,null,null,null,null,null,null,null,null,null,null,null,{"$f":"IF('P-Legislation'!E11=0,'P-Legislation'!C11,\"\")","v":""},{"$f":"IF('P-Legislation'!E11=1,'P-Legislation'!C11,\"\")","v":"The national authority reports at least one confirmed rabies case to WHO or OIE "}]
[1,{"$f":"IF('S-IEC'!E5=0,'S-IEC'!C5,\"\")","v":""},{"$f":"IF('S-IEC'!E5=1,'S-IEC'!C5,\"\")","v":"Communications situation and needs assessed at pilot level"},{"$f":"IF('S-Dog popn'!E5=0,'S-Dog popn'!C5,\"\")","v":""},{"$f":"IF('S-Dog popn'!E5=1,'S-Dog popn'!C5,\"\")","v":"Stakeholder consultations in pilot areas to create dog population management strategy"},{"$f":"IF('T-Prev & Ctrl'!E5=0,'T-Prev & Ctrl'!C5,\"\")","v":""},{"$f":"IF('T-Prev & Ctrl'!E5=1,'T-Prev & Ctrl'!C5,\"\")","v":"Vaccines for human rabies prophylaxis are available in available in some parts of the country"},{"$f":"IF('T-Data coll & ax'!E5=0,'T-Data coll & ax'!C5,\"\")","v":""},{"$f":"IF('T-Data coll & ax'!E5=1,'T-Data coll & ax'!C5,\"\")","v":"Reporting of dog rabies from local to national level "},{"$f":"IF('T-Lab dx'!E7=0,'T-Lab dx'!C7,\"\")","v":""},{"$f":"IF('T-Lab dx'!E7=1,'T-Lab dx'!C7,\"\")","v":"Rabies diagnostic capacity has been established in at least one national laboratory "},{"$f":"IF('O-Cross-cutting issues'!E6=0,'O-Cross-cutting issues'!C6,\"\")","v":""},{"$f":"IF('O-Cross-cutting issues'!E6=1,'O-Cross-cutting issues'!C6,\"\")","v":"Identification of main national stakeholders in rabies prevention and control has been carried out"},{"$f":"IF('P-Legislation'!E6=0,'P-Legislation'!C6,\"\")","v":""},{"$f":"IF('P-Legislation'!E6=1,'P-Legislation'!C6,\"\")","v":"The animal rabies case definition has been disseminated to relevant professionals"}]
[null,{"$f":"IF('S-IEC'!E6=0,'S-IEC'!C6,\"\")","v":""},{"$f":"IF('S-IEC'!E6=1,'S-IEC'!C6,\"\")","v":"Target audiences identified at pilot level (e.g. at-risk communities, dog owners, children)"},null,null,{"$f":"IF('T-Prev & Ctrl'!E6=0,'T-Prev & Ctrl'!C6,\"\")","v":""},{"$f":"IF('T-Prev & Ctrl'!E6=1,'T-Prev & Ctrl'!C6,\"\")","v":"A first assessment on access to PEP (and PreP) has been carried out"},{"$f":"IF('T-Data coll & ax'!E6=0,'T-Data coll & ax'!C6,\"\")","v":""},{"$f":"IF('T-Data coll & ax'!E6=1,'T-Data coll & ax'!C6,\"\")","v":"Reporting of human rabies from local to national level"},{"$f":"IF('T-Lab dx'!E8=0,'T-Lab dx'!C8,\"\")","v":""},{"$f":"IF('T-Lab dx'!E8=1,'T-Lab dx'!C8,\"\")","v":"Several rabies suspect samples of animals or humans are submitted to a national laboratory and analysed "},{"$f":"IF('O-Cross-cutting issues'!E7=0,'O-Cross-cutting issues'!C7,\"\")","v":"Stakeholder consultations held within the last 3 years at the national level"},{"$f":"IF('O-Cross-cutting issues'!E7=1,'O-Cross-cutting issues'!C7,\"\")","v":""},{"$f":"IF('P-Legislation'!E9=0,'P-Legislation'!C9,\"\")","v":""},{"$f":"IF('P-Legislation'!E9=1,'P-Legislation'!C9,\"\")","v":"The human rabies case definition has been disseminated to relevant professionals"}]
[null,{"$f":"IF('S-IEC'!E7=0,'S-IEC'!C7,\"\")","v":""},{"$f":"IF('S-IEC'!E7=1,'S-IEC'!C7,\"\")","v":"IEC plan developed and implemented at pilot level"},null,null,{"$f":"IF('T-Prev & Ctrl'!E12=0,'T-Prev & Ctrl'!C12,\"\")","v":""},{"$f":"IF('T-Prev & Ctrl'!E12=1,'T-Prev & Ctrl'!C12,\"\")","v":"Dog rabies vaccines are available in at least one location in the country"},{"$f":"IF('T-Data coll & ax'!E7=0,'T-Data coll & ax'!C7,\"\")","v":""},{"$f":"IF('T-Data coll & ax'!E7=1,'T-Data coll & ax'!C7,\"\")","v":"Reporting of all human or animal rabies testing results to relevant international database such as WHO or OIE"},{"$f":"IF('T-Lab dx'!E9=0,'T-Lab dx'!C9,\"\")","v":""},{"$f":"IF('T-Lab dx'!E9=1,'T-Lab dx'!C9,\"\")","v":"Animal rabies diagnosis conducted in at least one national laboratory"},{"$f":"IF('O-Cross-cutting issues'!E8=0,'O-Cross-cutting issues'!C8,\"\")","v":"Intersectoral rabies task force, committee or working group established at local or national level and meeting at least twice a year"},{"$f":"IF('O-Cross-cutting issues'!E8=1,'O-Cross-cutting issues'!C8,\"\")","v":""},{"$f":"IF('P-Legislation'!E12=0,'P-Legislation'!C12,\"\")","v":""},{"$f":"IF('P-Legislation'!E12=1,'P-Legislation'!C12,\"\")","v":"There is a national legal framework relevant to rabies prevention and control"}]
[null,{"$f":"IF('S-IEC'!E8=0,'S-IEC'!C8,\"\")","v":""},{"$f":"IF('S-IEC'!E8=1,'S-IEC'!C8,\"\")","v":"Broad public awareness messaging started at national level"},null,null,{"$f":"IF('T-Prev & Ctrl'!E13=0,'T-Prev & Ctrl'!C13,\"\")","v":""},{"$f":"IF('T-Prev & Ctrl'!E13=1,'T-Prev & Ctrl'!C13,\"\")","v":"Dog vaccination is initiated in some parts or pilot areas of the country "},{"$f":"IF('T-Data coll & ax'!E8=0,'T-Data coll & ax'!C8,\"\")","v":""},{"$f":"IF('T-Data coll & ax'!E8=1,'T-Data coll & ax'!C8,\"\")","v":"Dog rabies data analysis capacity at the national level has been established"},{"$f":"IF('T-Lab dx'!E10=0,'T-Lab dx'!C10,\"\")","v":""},{"$f":"IF('T-Lab dx'!E10=1,'T-Lab dx'!C10,\"\")","v":"Twice yearly rabies suspect samples of animals or humans are submitted to a international laboratory and analysed"},{"$f":"IF('O-Cross-cutting issues'!E11=0,'O-Cross-cutting issues'!C11,\"\")","v":"Based on pilot area experience, a short term rabies action plan has been developed and endorsed by relevant stakeholders at local / national level"},{"$f":"IF('O-Cross-cutting issues'!E11=1,'O-Cross-cutting issues'!C11,\"\")","v":""},{"$f":"IF('P-Legislation'!E13=0,'P-Legislation'!C13,\"\")","v":"If there is a legal framework, the framework has been reviewed to determine if it is adequate.  "},{"$f":"IF('P-Legislation'!E13=1,'P-Legislation'!C13,\"\")","v":""}]
[null,{"$f":"IF('S-IEC'!E13=0,'S-IEC'!C13,\"\")","v":""},{"$f":"IF('S-IEC'!E13=1,'S-IEC'!C13,\"\")","v":"Training needs assessed at pilot level"},null,null,{"$f":"IF('T-Prev & Ctrl'!E20=0,'T-Prev & Ctrl'!C20,\"\")","v":""},{"$f":"IF('T-Prev & Ctrl'!E20=1,'T-Prev & Ctrl'!C20,\"\")","v":"Integrated Bite Case Management (IBCM) implemented (at least in pilot areas) "},{"$f":"IF('T-Data coll & ax'!E9=0,'T-Data coll & ax'!C9,\"\")","v":""},{"$f":"IF('T-Data coll & ax'!E9=1,'T-Data coll & ax'!C9,\"\")","v":"Human rabies data analysis capacity at the national level has been established"},null,null,{"$f":"IF('O-Cross-cutting issues'!E12=0,'O-Cross-cutting issues'!C12,\"\")","v":""},{"$f":"IF('O-Cross-cutting issues'!E12=1,'O-Cross-cutting issues'!C12,\"\")","v":"Mechanisms for mobilizing emergency funds in case of an outbreak have been identified"},{"$f":"IF('P-Legislation'!E14=0,'P-Legislation'!C14,\"\")","v":""},{"$f":"IF('P-Legislation'!E14=1,'P-Legislation'!C14,\"\")","v":"Rabies is made a notifiable disease in animals "}]
[null,{"$f":"IF('S-IEC'!E14=0,'S-IEC'!C14,\"\")","v":""},{"$f":"IF('S-IEC'!E14=1,'S-IEC'!C14,\"\")","v":"Relevant human and animal health professionals identified at pilot level"},null,null,{"$f":"IF('T-Prev & Ctrl'!E21=0,'T-Prev & Ctrl'!C21,\"\")","v":""},{"$f":"IF('T-Prev & Ctrl'!E21=1,'T-Prev & Ctrl'!C21,\"\")","v":"Protocols/SOPs for coordinated action on reported outbreaks have been elaborated"},{"$f":"IF('T-Data coll & ax'!E10=0,'T-Data coll & ax'!C10,\"\")","v":""},{"$f":"IF('T-Data coll & ax'!E10=1,'T-Data coll & ax'!C10,\"\")","v":"Animal rabies surveillance system at the national level has been established"},null,null,null,null,{"$f":"IF('P-Legislation'!E15=0,'P-Legislation'!C15,\"\")","v":""},{"$f":"IF('P-Legislation'!E15=1,'P-Legislation'!C15,\"\")","v":"Rabies is made a notifiable disease in humans "}]
[null,{"$f":"IF('S-IEC'!E15=0,'S-IEC'!C15,\"\")","v":""},{"$f":"IF('S-IEC'!E15=1,'S-IEC'!C15,\"\")","v":"Training plan developed at pilot level"},null,null,null,null,{"$f":"IF('T-Data coll & ax'!E11=0,'T-Data coll & ax'!C11,\"\")","v":""},{"$f":"IF('T-Data coll & ax'!E11=1,'T-Data coll & ax'!C11,\"\")","v":"Human rabies surveillance system at the national level has been established"},null,null,null,null,{"$f":"IF('P-Legislation'!E16=0,'P-Legislation'!C16,\"\")","v":""},{"$f":"IF('P-Legislation'!E16=1,'P-Legislation'!C16,\"\")","v":"Legislation includes compulsory rabies vaccination of dogs or proposed if not in place"}]
[null,{"$f":"IF('S-IEC'!E16=0,'S-IEC'!C16,\"\")","v":""},{"$f":"IF('S-IEC'!E16=1,'S-IEC'!C16,\"\")","v":"Training or refresher courses on rabies and public communication initiated for professionals in human and animal health at pilot level"},null,null,null,null,{"$f":"IF('T-Data coll & ax'!E12=0,'T-Data coll & ax'!C12,\"\")","v":""},{"$f":"IF('T-Data coll & ax'!E12=1,'T-Data coll & ax'!C12,\"\")","v":"Dog bite reporting and documentation have been reviewed and data compiled"},null,null,null,null,{"$f":"IF('P-Legislation'!E17=0,'P-Legislation'!C17,\"\")","v":""},{"$f":"IF('P-Legislation'!E17=1,'P-Legislation'!C17,\"\")","v":"Legislation includes measures for outbreak response"}]
[null,{"$f":"IF('S-IEC'!E18=0,'S-IEC'!C18,\"\")","v":""},{"$f":"IF('S-IEC'!E18=1,'S-IEC'!C18,\"\")","v":"Advocacy stakeholder analysis done at pilot level and target audiences identified"},null,null,null,null,{"$f":"IF('T-Data coll & ax'!E13=0,'T-Data coll & ax'!C13,\"\")","v":""},{"$f":"IF('T-Data coll & ax'!E13=1,'T-Data coll & ax'!C13,\"\")","v":"Dog population studies and KAP surveys to determine size, turn-over and accessibility of dogs for vaccination have been conducted in pilot areas"}]
[null,{"$f":"IF('S-IEC'!E19=0,'S-IEC'!C19,\"\")","v":""},{"$f":"IF('S-IEC'!E19=1,'S-IEC'!C19,\"\")","v":"Advocacy plan developed and implemented at pilot level"}]
[2,{"$f":"IF('S-IEC'!E9=0,'S-IEC'!C9,\"\")","v":""},{"$f":"IF('S-IEC'!E9=1,'S-IEC'!C9,\"\")","v":"IEC plan implemented beyond pilot area"},{"$f":"IF('S-Dog popn'!E6=0,'S-Dog popn'!C6,\"\")","v":""},{"$f":"IF('S-Dog popn'!E6=1,'S-Dog popn'!C6,\"\")","v":"A DPM strategy and programme has been  drafted and shared with all relevant stakeholders in pilot areas"},{"$f":"IF('T-Prev & Ctrl'!E7=0,'T-Prev & Ctrl'!C7,\"\")","v":""},{"$f":"IF('T-Prev & Ctrl'!E7=1,'T-Prev & Ctrl'!C7,\"\")","v":"WHO pre-qualified human rabies vaccines available and accessible in most parts of the country"},{"$f":"IF('T-Data coll & ax'!E14=0,'T-Data coll & ax'!C14,\"\")","v":""},{"$f":"IF('T-Data coll & ax'!E14=1,'T-Data coll & ax'!C14,\"\")","v":"Establishment of linked human and animal rabies surveillance systems, including agreed SOPs"},{"$f":"IF('T-Lab dx'!E11=0,'T-Lab dx'!C11,\"\")","v":""},{"$f":"IF('T-Lab dx'!E11=1,'T-Lab dx'!C11,\"\")","v":"Routine laboratory diagnosis of animal rabies cases in country"},{"$f":"IF('O-Cross-cutting issues'!E9=0,'O-Cross-cutting issues'!C9,\"\")","v":"Mechanisms for regular intersectoral collaboration are in place and implemented"},{"$f":"IF('O-Cross-cutting issues'!E9=1,'O-Cross-cutting issues'!C9,\"\")","v":""},{"$f":"IF('P-Legislation'!E7=0,'P-Legislation'!C7,\"\")","v":"The animal rabies case definition has been reviewed and endorsed (intersectoral approach)"},{"$f":"IF('P-Legislation'!E7=1,'P-Legislation'!C7,\"\")","v":""}]
[null,{"$f":"IF('S-IEC'!E10=0,'S-IEC'!C10,\"\")","v":"IEC plan reviewed and updated"},{"$f":"IF('S-IEC'!E10=1,'S-IEC'!C10,\"\")","v":""},{"$f":"IF('S-Dog popn'!E7=0,'S-Dog popn'!C7,\"\")","v":"DPM strategy finalized"},{"$f":"IF('S-Dog popn'!E7=1,'S-Dog popn'!C7,\"\")","v":""},{"$f":"IF('T-Prev & Ctrl'!E8=0,'T-Prev & Ctrl'!C8,\"\")","v":""},{"$f":"IF('T-Prev & Ctrl'!E8=1,'T-Prev & Ctrl'!C8,\"\")","v":"Any use of human biologics not WHO-pre-qualified is being phased out (e.g. nerve tissue vaccines, low quality vaccines)"},{"$f":"IF('T-Data coll & ax'!E15=0,'T-Data coll & ax'!C15,\"\")","v":"Human rabies surveillance systems, including feedback mechanism, are functioning and coordinated between administrative levels (national, province, district, municipal, etc.) "},{"$f":"IF('T-Data coll & ax'!E15=1,'T-Data coll & ax'!C15,\"\")","v":""},{"$f":"IF('T-Lab dx'!E12=0,'T-Lab dx'!C12,\"\")","v":""},{"$f":"IF('T-Lab dx'!E12=1,'T-Lab dx'!C12,\"\")","v":"Capacity for sample collection and transportation has been established "},{"$f":"IF('O-Cross-cutting issues'!E10=0,'O-Cross-cutting issues'!C10,\"\")","v":"Contribution and role of  private sector clarified and shared with other stakeholders"},{"$f":"IF('O-Cross-cutting issues'!E10=1,'O-Cross-cutting issues'!C10,\"\")","v":""},{"$f":"IF('P-Legislation'!E10=0,'P-Legislation'!C10,\"\")","v":"The human rabies case definition has been reviewed and endorsed (intersectoral approach)"},{"$f":"IF('P-Legislation'!E10=1,'P-Legislation'!C10,\"\")","v":""}]
[null,{"$f":"IF('S-IEC'!E17=0,'S-IEC'!C17,\"\")","v":"Training of human and animal health personnel has been conducted in most parts of the country"},{"$f":"IF('S-IEC'!E17=1,'S-IEC'!C17,\"\")","v":""},{"$f":"IF('S-Dog popn'!E8=0,'S-Dog popn'!C8,\"\")","v":"Public sensitisation about DPM built in to rabies awareness campaigns in pilot areas"},{"$f":"IF('S-Dog popn'!E8=1,'S-Dog popn'!C8,\"\")","v":""},{"$f":"IF('T-Prev & Ctrl'!E9=0,'T-Prev & Ctrl'!C9,\"\")","v":""},{"$f":"IF('T-Prev & Ctrl'!E9=1,'T-Prev & Ctrl'!C9,\"\")","v":"Supply and access to WHO pre-qualified human rabies vaccines for PrEP for professionals at risk ensured throughout the pilot areas"},{"$f":"IF('T-Data coll & ax'!E16=0,'T-Data coll & ax'!C16,\"\")","v":"Animal rabies surveillance systems, including feedback mechanism, are functioning and coordinated between administrative levels (national, province, district, municipal, etc.)"},{"$f":"IF('T-Data coll & ax'!E16=1,'T-Data coll & ax'!C16,\"\")","v":""},null,null,{"$f":"IF('O-Cross-cutting issues'!E13=0,'O-Cross-cutting issues'!C13,\"\")","v":"A national strategy and programme for rabies prevention, control and eventual elimination has been  drafted and shared with all relevant stakeholders"},{"$f":"IF('O-Cross-cutting issues'!E13=1,'O-Cross-cutting issues'!C13,\"\")","v":""},{"$f":"IF('P-Legislation'!E18=0,'P-Legislation'!C18,\"\")","v":""},{"$f":"IF('P-Legislation'!E18=1,'P-Legislation'!C11,\"\")","v":"The national authority reports at least one confirmed rabies case to WHO or OIE "}]
[null,{"$f":"IF('S-IEC'!E20=0,'S-IEC'!C20,\"\")","v":"Pilot program successes communicated to authorities/leaders in other parts of the country"},{"$f":"IF('S-IEC'!E20=1,'S-IEC'!C20,\"\")","v":""},{"$f":"IF('S-Dog popn'!E9=0,'S-Dog popn'!C9,\"\")","v":""},{"$f":"IF('S-Dog popn'!E9=1,'S-Dog popn'!C9,\"\")","v":"Dog population management has been implemented in pilot areas."},{"$f":"IF('T-Prev & Ctrl'!E14=0,'T-Prev & Ctrl'!C14,\"\")","v":""},{"$f":"IF('T-Prev & Ctrl'!E14=1,'T-Prev & Ctrl'!C14,\"\")","v":"Only quality dog vaccines in accordance with OIE standards are being used"},{"$f":"IF('T-Data coll & ax'!E17=0,'T-Data coll & ax'!C17,\"\")","v":"Information on the epidemiology of rabies is regularly shared with all stakeholders"},{"$f":"IF('T-Data coll & ax'!E17=1,'T-Data coll & ax'!C17,\"\")","v":""},null,null,{"$f":"IF('O-Cross-cutting issues'!E14=0,'O-Cross-cutting issues'!C14,\"\")","v":""},{"$f":"IF('O-Cross-cutting issues'!E14=1,'O-Cross-cutting issues'!C14,\"\")","v":"Government resources identified and allocated in support of the national rabies control strategy and programme  "}]
[null,{"$f":"IF('S-IEC'!E21=0,'S-IEC'!C21,\"\")","v":"Advocacy stakeholder analysis done at national level and target audiences identified"},{"$f":"IF('S-IEC'!E21=1,'S-IEC'!C21,\"\")","v":""},{"$f":"IF('S-Dog popn'!E10=0,'S-Dog popn'!C10,\"\")","v":""},{"$f":"IF('S-Dog popn'!E10=1,'S-Dog popn'!C10,\"\")","v":"Training or refresher courses on animal handling and sterilisation initiated for professionals in animal health in pilot areas"},{"$f":"IF('T-Prev & Ctrl'!E15=0,'T-Prev & Ctrl'!C15,\"\")","v":""},{"$f":"IF('T-Prev & Ctrl'!E15=1,'T-Prev & Ctrl'!C15,\"\")","v":"Dog vaccination campaigns are regularly implemented in response to human cases and animal outbreaks"}]
[null,{"$f":"IF('S-IEC'!E22=0,'S-IEC'!C22,\"\")","v":"Advocacy campaign to national leaders/authorities to ensure that national rabies strategy is created and properly resourced"},{"$f":"IF('S-IEC'!E22=1,'S-IEC'!C22,\"\")","v":""},null,null,{"$f":"IF('T-Prev & Ctrl'!E22=0,'T-Prev & Ctrl'!C22,\"\")","v":""},{"$f":"IF('T-Prev & Ctrl'!E22=1,'T-Prev & Ctrl'!C22,\"\")","v":"IBCM SOPs agreed, including sharing of information between sectors"}]
[null,null,null,null,null,{"$f":"IF('T-Prev & Ctrl'!E23=0,'T-Prev & Ctrl'!C23,\"\")","v":""},{"$f":"IF('T-Prev & Ctrl'!E23=1,'T-Prev & Ctrl'!C23,\"\")","v":"SOPs for the observation of dogs involved in biting incidents available "}]
[3,{"$f":"IF('S-IEC'!E11=0,'S-IEC'!C11,\"\")","v":"IEC plan integrated into national rabies strategy and implemented at national level"},{"$f":"IF('S-IEC'!E11=1,'S-IEC'!C11,\"\")","v":""},{"$f":"IF('S-Dog popn'!E11=0,'S-Dog popn'!C11,\"\")","v":"Refinement of strategy based on current dog ecology and KAP surveys"},{"$f":"IF('S-Dog popn'!E11=1,'S-Dog popn'!C11,\"\")","v":""},{"$f":"IF('T-Prev & Ctrl'!E10=0,'T-Prev & Ctrl'!C10,\"\")","v":""},{"$f":"IF('T-Prev & Ctrl'!E10=1,'T-Prev & Ctrl'!C10,\"\")","v":"WHO pre-qualified Pre- and Post- Exposure Prophylaxis available and accessible to high risk and exposed individuals throughout the country"},{"$f":"IF('T-Data coll & ax'!E18=0,'T-Data coll & ax'!C18,\"\")","v":""},{"$f":"IF('T-Data coll & ax'!E18=1,'T-Data coll & ax'!C18,\"\")","v":"Conduct field investigations for all suspected human rabies cases "},{"$f":"IF('T-Lab dx'!E13=0,'T-Lab dx'!C13,\"\")","v":""},{"$f":"IF('T-Lab dx'!E13=1,'T-Lab dx'!C13,\"\")","v":"Access to laboratory diagnosis is available throughout the country  for animal samples (and if possible also for human samples)"},{"$f":"IF('O-Cross-cutting issues'!E15=0,'O-Cross-cutting issues'!C15,\"\")","v":"Refinement of national strategy based on monitoring and evaluation "},{"$f":"IF('O-Cross-cutting issues'!E15=1,'O-Cross-cutting issues'!C15,\"\")","v":""}]
[null,{"$f":"IF('S-IEC'!E23=0,'S-IEC'!C23,\"\")","v":"Public declaration of  human  rabies free zones"},{"$f":"IF('S-IEC'!E23=1,'S-IEC'!C23,\"\")","v":""},{"$f":"IF('S-Dog popn'!E12=0,'S-Dog popn'!C12,\"\")","v":"Rabies awareness campaigns including responsible dog ownership have been expanded to more areas"},{"$f":"IF('S-Dog popn'!E12=1,'S-Dog popn'!C12,\"\")","v":""},{"$f":"IF('T-Prev & Ctrl'!E16=0,'T-Prev & Ctrl'!C16,\"\")","v":""},{"$f":"IF('T-Prev & Ctrl'!E16=1,'T-Prev & Ctrl'!C16,\"\")","v":"Mass dog vaccination campaigns (at least 70% of the total dog population) are conducted according to the national rabies strategy "},{"$f":"IF('T-Data coll & ax'!E19=0,'T-Data coll & ax'!C19,\"\")","v":"Epidemiological evidence available to rule out dog- transmitted human rabies cases"},{"$f":"IF('T-Data coll & ax'!E19=1,'T-Data coll & ax'!C19,\"\")","v":""},{"$f":"IF('T-Lab dx'!E14=0,'T-Lab dx'!C14,\"\")","v":"Regular characterization and analysis of circulating rabies virus variants by a national or international laboratory"},{"$f":"IF('T-Lab dx'!E14=1,'T-Lab dx'!C14,\"\")","v":""}]
[null,null,null,{"$f":"IF('S-Dog popn'!E13=0,'S-Dog popn'!C13,\"\")","v":""},{"$f":"IF('S-Dog popn'!E13=1,'S-Dog popn'!C13,\"\")","v":"Veterinary and animal technician training completed across most of country"},{"$f":"IF('T-Prev & Ctrl'!E17=0,'T-Prev & Ctrl'!C17,\"\")","v":"Post-vaccination surveys in dogs to evaluate vaccination coverage"},{"$f":"IF('T-Prev & Ctrl'!E17=1,'T-Prev & Ctrl'!C17,\"\")","v":""},{"$f":"IF('T-Data coll & ax'!E20=0,'T-Data coll & ax'!C20,\"\")","v":""},{"$f":"IF('T-Data coll & ax'!E20=1,'T-Data coll & ax'!C20,\"\")","v":"Conduct field investigations and laboratory confirmation for all suspected rabies outbreaks in dogs"}]
[null,null,null,{"$f":"IF('S-Dog popn'!E14=0,'S-Dog popn'!C14,\"\")","v":"Dog population management has been implemented nationwide"},{"$f":"IF('S-Dog popn'!E14=1,'S-Dog popn'!C14,\"\")","v":""},{"$f":"IF('T-Prev & Ctrl'!E24=0,'T-Prev & Ctrl'!C24,\"\")","v":"Capacity to conduct field investigations and planned outbreak response for animal and human rabies cases is available in the entire country"},{"$f":"IF('T-Prev & Ctrl'!E24=1,'T-Prev & Ctrl'!C24,\"\")","v":""},{"$f":"IF('T-Data coll & ax'!E24=0,'T-Data coll & ax'!C24,\"\")","v":"Initiate collection of local or national health economic data on rabies control to make the case for rabies control investment "},{"$f":"IF('T-Data coll & ax'!E24=1,'T-Data coll & ax'!C24,\"\")","v":""}]
[null,null,null,null,null,{"$f":"IF('T-Prev & Ctrl'!E25=0,'T-Prev & Ctrl'!C25,\"\")","v":"Sufficient facilities for observation of rabies-suspected dogs established and comply with international animal welfare regulations"},{"$f":"IF('T-Prev & Ctrl'!E25=1,'T-Prev & Ctrl'!C25,\"\")","v":""},{"$f":"IF('T-Data coll & ax'!E25=0,'T-Data coll & ax'!C25,\"\")","v":"Expand health economic studies to support further prioritization within the national rabies control programme"},{"$f":"IF('T-Data coll & ax'!E25=1,'T-Data coll & ax'!C25,\"\")","v":""}]
[null,null,null,null,null,{"$f":"IF('T-Prev & Ctrl'!E26=0,'T-Prev & Ctrl'!C26,\"\")","v":"Identification of potential rabies free zones where canine variant cases are absent for at least a 2 year period"},{"$f":"IF('T-Prev & Ctrl'!E26=1,'T-Prev & Ctrl'!C26,\"\")","v":""}]
[4,{"$f":"IF('S-IEC'!E24=0,'S-IEC'!C24,\"\")","v":"Public declaration of national dog-transmitted rabies freedom "},{"$f":"IF('S-IEC'!E24=1,'S-IEC'!C24,\"\")","v":""},null,null,{"$f":"IF('T-Prev & Ctrl'!E18=0,'T-Prev & Ctrl'!C18,\"\")","v":"Dog vaccination campaigns are maintained in zones where dog rabies is still present or where otherwise justified (e.g. risk of introduction)"},{"$f":"IF('T-Prev & Ctrl'!E18=1,'T-Prev & Ctrl'!C18,\"\")","v":""},{"$f":"IF('T-Data coll & ax'!E21=0,'T-Data coll & ax'!C21,\"\")","v":"Maintenance of existing surveillance activities for all suspected cases in humans in the country"},{"$f":"IF('T-Data coll & ax'!E21=1,'T-Data coll & ax'!C21,\"\")","v":""},{"$f":"IF('T-Lab dx'!E15=0,'T-Lab dx'!C15,\"\")","v":"Maintenance of existing surveillance activities, including ongoing laboratory investigation, for all suspected cases in dogs in the country"},{"$f":"IF('T-Lab dx'!E15=1,'T-Lab dx'!C15,\"\")","v":""},{"$f":"IF('O-Cross-cutting issues'!E16=0,'O-Cross-cutting issues'!C16,\"\")","v":"Veterinary border inspection and quarantine measures are fully implemented in accordance with national regulations"},{"$f":"IF('O-Cross-cutting issues'!E16=1,'O-Cross-cutting issues'!C16,\"\")","v":""}]
[null,{"$f":"IF('S-IEC'!E25=0,'S-IEC'!C25,\"\")","v":"Public declaration of national human rabies freedom"},{"$f":"IF('S-IEC'!E25=1,'S-IEC'!C25,\"\")","v":""},null,null,{"$f":"IF('T-Prev & Ctrl'!E27=0,'T-Prev & Ctrl'!C27,\"\")","v":"Freedom from dog-transmitted rabies in the entire country verified by the absence of canine variant cases for at least a 2 year period"},{"$f":"IF('T-Prev & Ctrl'!E27=1,'T-Prev & Ctrl'!C27,\"\")","v":""},{"$f":"IF('T-Data coll & ax'!E22=0,'T-Data coll & ax'!C22,\"\")","v":"Epidemiological data from routine surveillance of all animals (working animals, livestock and wildlife) used to refine the national rabies strategy"},{"$f":"IF('T-Data coll & ax'!E22=1,'T-Data coll & ax'!C22,\"\")","v":""}]
[null,null,null,null,null,{"$f":"IF('T-Prev & Ctrl'!E28=0,'T-Prev & Ctrl'!C28,\"\")","v":"Measures to prevent re-introduction applied in designated rabies free zones including dialogue with neighbouring countries."},{"$f":"IF('T-Prev & Ctrl'!E28=1,'T-Prev & Ctrl'!C28,\"\")","v":""}]
[null,null,null,null,null,{"$f":"IF('T-Prev & Ctrl'!E29=0,'T-Prev & Ctrl'!C29,\"\")","v":"Emergency response/contingency plan to any case of animal rabies involving a canine variant developed in preparation of the post elimination phase"},{"$f":"IF('T-Prev & Ctrl'!E29=1,'T-Prev & Ctrl'!C29,\"\")","v":""}]
[5,{"$f":"IF('S-IEC'!E12=0,'S-IEC'!C12,\"\")","v":"Awareness programmes focusing on maintenance of freedom from dog and dog transmitted human rabies"},{"$f":"IF('S-IEC'!E12=1,'S-IEC'!C12,\"\")","v":""},{"$f":"IF('S-Dog popn'!E15=0,'S-Dog popn'!C15,\"\")","v":"Dog population management and responsible dog ownership campaigns are continued"},{"$f":"IF('S-Dog popn'!E15=1,'S-Dog popn'!C15,\"\")","v":""},{"$f":"IF('T-Prev & Ctrl'!E11=0,'T-Prev & Ctrl'!C11,\"\")","v":"Modified protocols for PEP administration for rabies free areas implemented"},{"$f":"IF('T-Prev & Ctrl'!E11=1,'T-Prev & Ctrl'!C11,\"\")","v":""},{"$f":"IF('T-Data coll & ax'!E23=0,'T-Data coll & ax'!C23,\"\")","v":"On-going surveillance system for rabies maintained"},{"$f":"IF('T-Data coll & ax'!E23=1,'T-Data coll & ax'!C23,\"\")","v":""},{"$f":"IF('T-Lab dx'!E16=0,'T-Lab dx'!C16,\"\")","v":"On-going laboratory investigation of all suspected cases in domestic and wild animal species in the country"},{"$f":"IF('T-Lab dx'!E16=1,'T-Lab dx'!C16,\"\")","v":""}]
[null,null,null,null,null,{"$f":"IF('T-Prev & Ctrl'!E19=0,'T-Prev & Ctrl'!C19,\"\")","v":"Based on risk assessment, dog vaccination campaigns are maintained where justified"},{"$f":"IF('T-Prev & Ctrl'!E19=1,'T-Prev & Ctrl'!C19,\"\")","v":""}]
[null,null,null,null,null,{"$f":"IF('T-Prev & Ctrl'!E30=0,'T-Prev & Ctrl'!C30,\"\")","v":"Capacity for outbreak and re-introduction response maintained"},{"$f":"IF('T-Prev & Ctrl'!E30=1,'T-Prev & Ctrl'!C30,\"\")","v":""}]

{"sheet":"RULES","index":15,"n_rows":8,"n_cols":2,"rows_kept":8,"cut":false,"hidden":true,"merged":[]}
["RULES FOR STAGE PROGRESSION"]
[]
["SCORE","RULE"]
["+ 1","All critical activities (see hidden Key Activities worksheet) accomplished"]
["+ 0.5","50% or more of the critical activities checked"]
["+ 0.5","Not all but at least 1 critical activity checked, AND 50% +1 of all activities checked"]
["+ 0","At least 1 critical activity checked, AND 50% or less of all activities checked"]
["+ 0","No critical activity accomplished"]